Workbook

Sheet First tier 2018
A1: Order | B1: Rank | C1: School | D1: State | E1: Region | F1: Setting | G1: UG Enroll | H1: Selectivity | I1: Selective | J1: PctMale | K1: PctOS | L1: Tuition | M1: ISTuition | N1: Type | O1: CompScore | P1: PeerRating | Q1: HSGCRating | R1: GradRetentRank | S1: RetentRate | T1: GradRate | U1: FacResourcesRank | V1: PctCLU20 | W1: PCTCLO50 | X1: SFRatio | Y1: SelectRank | Z1: TestMidRange | AA1: Test | AB1: Test25 | AC1: Test75 | AD1: TestMid | AE1: TopFresh | AF1: Accept | AG1: FinResRank | AH1: AlumniSalary | AI1: AlumGiveRnank | AJ1: PctAlumGive
A2: 1 | B2: 1 | C2: Princeton University | D2: NJ | E2: East | F2: Suburban | G2: 5400 | H2: Most selective | I2: 4 | J2: 51.7% | K2: 82% | L2: 47140 | N2: private | O2: 100 | P2: 4.9 | Q2: 4.9 | R2: 2 | S2: 98% | T2: 97% | U2: 6 | V2: 73% | W2: 11% | X2: 5 | Y2: 6 | Z2: 1400-1590 | AA2: SAT | AB2: 1400 | AC2: 1590 | AD2: =+('First tier 2018'!$AB2+'First tier 2018'!$AC2)/2 -> 1495 | AE2: 94% | AF2: 7% | AG2: 10 | AH2: $66,700 | AI2: 1 | AJ2: 61%
A3: 2 | B3: 2 | C3: Harvard University | D3: MA | E3: East | F3: Urban | G3: 6710 | H3: Most selective | I3: 4 | J3: 53.2% | K3: 84% | L3: 48949 | N3: private | O3: 98 | P3: 4.9 | Q3: 5.0 | R3: 2 | S3: 97% | T3: 97% | U3: 4 | V3: 74% | W3: 10% | X3: 7 | Y3: 3 | Z3: 1430-1600 | AA3: SAT | AB3: 1430 | AC3: 1600 | AD3: =+('First tier 2018'!$AB3+'First tier 2018'!$AC3)/2 -> 1515 | AE3: 95% | AF3: 5% | AG3: 8 | AH3: $63,100 | AI3: 9 | AJ3: 35%
A4: 3 | B4: 3 | C4: University of Chicago | D4: IL | E4: Midwest | F4: Urban | G4: 5941 | H4: Most selective | I4: 4 | J4: 51.7% | K4: 81% | L4: 54825 | N4: private | O4: 96 | P4: 4.6 | Q4: 4.8 | R4: 11 | S4: 99% | T4: 94% | U4: 3 | V4: 77% | W4: 6% | X4: 5 | Y4: 1 | Z4: 1450-1600 | AA4: SAT | AB4: 1450 | AC4: 1600 | AD4: =+('First tier 2018'!$AB4+'First tier 2018'!$AC4)/2 -> 1525 | AE4: 98% | AF4: 8% | AG4: 4 | AH4: $54,400 | AI4: 3 | AJ4: 41%
A5: 4 | B5: 3 | C5: Yale University | D5: CT | E5: East | F5: City | G5: 5472 | H5: Most selective | I5: 4 | J5: 50.9% | K5: 93% | L5: 51400 | N5: private | O5: 96 | P5: 4.8 | Q5: 5.0 | R5: 1 | S5: 99% | T5: 98% | U5: 9 | V5: 75% | W5: 8% | X5: 6 | Y5: 6 | Z5: 1420-1600 | AA5: SAT | AB5: 1420 | AC5: 1600 | AD5: =+('First tier 2018'!$AB5+'First tier 2018'!$AC5)/2 -> 1510 | AE5: 94% | AF5: 6% | AG5: 1 | AH5: $60,200 | AI5: 17 | AJ5: 30%
A6: 5 | B6: 5 | C6: Columbia University | D6: NY | E6: East | F6: Urban | G6: 6113 | H6: Most selective | I6: 4 | J6: 51.8% | K6: 76% | L6: 57208 | N6: private | O6: 95 | P6: 4.7 | Q6: 4.9 | R6: 4 | S6: 99% | T6: 96% | U6: 2 | V6: 83% | W6: 9% | X6: 6 | Y6: 3 | Z6: 1430-1600 | AA6: SAT | AB6: 1430 | AC6: 1600 | AD6: =+('First tier 2018'!$AB6+'First tier 2018'!$AC6)/2 -> 1515 | AE6: 95% | AF6: 6% | AG6: 12 | AH6: $62,200 | AI6: 14 | AJ6: 32%
A7: 6 | B7: 5 | C7: Massachusetts Inst. of Technology | D7: MA | E7: East | F7: Urban | G7: 4524 | H7: Most selective | I7: 4 | J7: 53.8% | K7: 90% | L7: 49892 | N7: private | O7: 95 | P7: 4.9 | Q7: 5.0 | R7: 14 | S7: 98% | T7: 93% | U7: 12 | V7: 70% | W7: 13% | X7: 3 | Y7: 3 | Z7: 1460-1590 | AA7: SAT | AB7: 1460 | AC7: 1590 | AD7: =+('First tier 2018'!$AB7+'First tier 2018'!$AC7)/2 -> 1525 | AE7: 97% | AF7: 8% | AG7: 3 | AH7: $76,900 | AI7: 8 | AJ7: 36%
A8: 7 | B8: 5 | C8: Stanford University | D8: CA | E8: West | F8: Suburban | G8: 7034 | H8: Most selective | I8: 4 | J8: 51.5% | K8: 58% | L8: 49617 | N8: private | O8: 95 | P8: 4.9 | Q8: 5.0 | R8: 9 | S8: 98% | T8: 94% | U8: 11 | V8: 70% | W8: 12% | X8: 4 | Y8: 6 | Z8: 1380-1580 | AA8: SAT | AB8: 1380 | AC8: 1580 | AD8: =+('First tier 2018'!$AB8+'First tier 2018'!$AC8)/2 -> 1480 | AE8: 95% | AF8: 5% | AG8: 4 | AH8: $70,300 | AI8: 11 | AJ8: 34%
A9: 8 | B9: 8 | C9: University of Pennsylvania | D9: PA | E9: East | F9: Urban | G9: 10019 | H9: Most selective | I9: 4 | J9: 49.8% | K9: 81% | L9: 53534 | N9: private | O9: 93 | P9: 4.5 | Q9: 4.8 | R9: 4 | S9: 98% | T9: 95% | U9: 6 | V9: 70% | W9: 10% | X9: 6 | Y9: 6 | Z9: 1380-1570 | AA9: SAT | AB9: 1380 | AC9: 1570 | AD9: =+('First tier 2018'!$AB9+'First tier 2018'!$AC9)/2 -> 1475 | AE9: 95% | AF9: 9% | AG9: 12 | AI9: 7 | AJ9: 36%
A10: 9 | B10: 9 | C10: Duke University | D10: NC | E10: South | F10: Suburban | G10: 6609 | H10: Most selective | I10: 4 | J10: 50.6% | L10: 53744 | N10: private | O10: 92 | P10: 4.4 | Q10: 4.8 | R10: 9 | S10: 97% | T10: 95% | U10: 1 | V10: 71% | W10: 7% | X10: 6 | Y10: 15 | Z10: 1380-1570 | AA10: SAT | AB10: 1380 | AC10: 1570 | AD10: =+('First tier 2018'!$AB10+'First tier 2018'!$AC10)/2 -> 1475 | AE10: 91% | AF10: 11% | AG10: 15 | AH10: $62,700 | AI10: 9 | AJ10: 34%
A11: 10 | B11: 10 | C11: California Institute of Technology | D11: CA | E11: West | F11: Suburban | G11: 979 | H11: Most selective | I11: 4 | J11: 59.1% | K11: 66% | L11: 49908 | N11: private | O11: 91 | P11: 4.6 | Q11: 4.6 | R11: 14 | S11: 97% | T11: 94% | U11: 9 | V11: 67% | W11: 9% | X11: 3 | Y11: 1 | Z11: 1510-1600 | AA11: SAT | AB11: 1510 | AC11: 1600 | AD11: =+('First tier 2018'!$AB11+'First tier 2018'!$AC11)/2 -> 1555 | AE11: 97% | AF11: 8% | AG11: 2 | AH11: $78,400 | AI11: 22 | AJ11: 25%
A12: 11 | B12: 11 | C12: Dartmouth College | D12: NH | E12: East | F12: Rural | G12: 4310 | H12: Most selective | I12: 4 | J12: 50.0% | K12: 98% | L12: 52950 | N12: private | O12: 90 | P12: 4.3 | Q12: 4.9 | R12: 4 | S12: 98% | T12: 97% | U12: 14 | V12: 62% | W12: 8% | X12: 7 | Y12: 11 | Z12: 1350-1560 | AA12: SAT | AB12: 1350 | AC12: 1560 | AD12: =+('First tier 2018'!$AB12+'First tier 2018'!$AC12)/2 -> 1455 | AE12: 93% | AF12: 11% | AG12: 15 | AH12: $61,700 | AI12: 2 | AJ12: 45%
A13: 12 | B13: 11 | C13: Johns Hopkins University | D13: MD | E13: South | F13: Urban | G13: 6117 | H13: Most selective | I13: 4 | J13: 49.8% | K13: 88% | L13: 52170 | N13: private | O13: 90 | P13: 4.6 | Q13: 4.9 | R13: 14 | S13: 97% | T13: 94% | U13: 19 | V13: 74% | W13: 10% | X13: 7 | Y13: 6 | Z13: 1420-1570 | AA13: SAT | AB13: 1420 | AC13: 1570 | AD13: =+('First tier 2018'!$AB13+'First tier 2018'!$AC13)/2 -> 1495 | AE13: 94% | AF13: 12% | AG13: 6 | AH13: $61,600 | AI13: 6 | AJ13: 37%
A14: 13 | B14: 11 | C14: Northwestern University | D14: IL | E14: Midwest | F14: Suburban | G14: 8353 | H14: Most selective | I14: 4 | J14: 49.9% | K14: 67% | L14: 52678 | N14: private | O14: 90 | P14: 4.4 | Q14: 4.6 | R14: 11 | S14: 98% | T14: 94% | U14: 5 | V14: 77% | W14: 6% | X14: 7 | Y14: 11 | Z14: 32-34 | AA14: ACT | AB14: 32 | AC14: 34 | AD14: =+('First tier 2018'!$AB14+'First tier 2018'!$AC14)/2 -> 33 | AE14: 91% | AF14: 11% | AG14: 9 | AH14: $56,400 | AI14: 18 | AJ14: 28%
A15: 14 | B15: 14 | C15: Brown University | D15: RI | E15: East | F15: City | G15: 6926 | H15: Most selective | I15: 4 | J15: 47.8% | K15: 95% | L15: 53419 | N15: private | O15: 86 | P15: 4.4 | Q15: 4.9 | R15: 4 | S15: 98% | T15: 96% | U15: 18 | V15: 68% | W15: 11% | X15: 7 | Y15: 11 | Z15: 1370-1570 | AA15: SAT | AB15: 1370 | AC15: 1570 | AD15: =+('First tier 2018'!$AB15+'First tier 2018'!$AC15)/2 -> 1470 | AE15: 92% | AF15: 9% | AG15: 22 | AH15: $57,500 | AI15: 13 | AJ15: 32%
A16: 15 | B16: 14 | C16: Cornell University | D16: NY | E16: East | F16: Rural | G16: 14566 | H16: Most selective | I16: 4 | J16: 48.0% | K16: 66% | L16: 52853 | N16: private | O16: 86 | P16: 4.6 | Q16: 4.9 | R16: 14 | S16: 97% | T16: 94% | U16: 24 | V16: 58% | W16: 18% | X16: 9 | Y16: 19 | Z16: 1330-1530 | AA16: SAT | AB16: 1330 | AC16: 1530 | AD16: =+('First tier 2018'!$AB16+'First tier 2018'!$AC16)/2 -> 1430 | AE16: 90% | AF16: 14% | AG16: 17 | AH16: $63,100 | AI16: 20 | AJ16: 27%
A17: 16 | B17: 14 | C17: Rice University | D17: TX | E17: South | F17: Urban | G17: 3893 | H17: Most selective | I17: 4 | J17: 52.5% | K17: 50% | L17: 45608 | N17: private | O17: 86 | P17: 4.1 | Q17: 4.7 | R17: 21 | S17: 97% | T17: 93% | U17: 8 | V17: 71% | W17: 8% | X17: 6 | Y17: 15 | Z17: 1410-1570 | AA17: SAT | AB17: 1410 | AC17: 1570 | AD17: =+('First tier 2018'!$AB17+'First tier 2018'!$AC17)/2 -> 1490 | AE17: 88% | AF17: 15% | AG17: 20 | AH17: $63,300 | AI17: 11 | AJ17: 34%
A18: 17 | B18: 14 | C18: Vanderbilt University | D18: TN | E18: South | F18: Urban | G18: 6871 | H18: Most selective | I18: 4 | J18: 49.5% | K18: 90% | L18: 47664 | N18: private | O18: 86 | P18: 4.2 | Q18: 4.7 | R18: 14 | S18: 97% | T18: 92% | U18: 13 | V18: 66% | W18: 9% | X18: 8 | Y18: 11 | Z18: 32-35 | AA18: ACT | AB18: 32 | AC18: 35 | AD18: =+('First tier 2018'!$AB18+'First tier 2018'!$AC18)/2 -> 33.5 | AE18: 87% | AF18: 11% | AG18: 12 | AH18: $58,000 | AI18: 22 | AJ18: 25%
A19: 18 | B19: 18 | C19: University of Notre Dame | D19: IN | E19: Midwest | F19: City | G19: 8530 | H19: Most selective | I19: 4 | J19: 52.8% | K19: 93% | L19: 51505 | N19: private | O19: 85 | P19: 4.1 | Q19: 4.7 | R19: 4 | S19: 98% | T19: 95% | U19: 15 | V19: 60% | W19: 10% | X19: 10 | Y19: 15 | Z19: 32-35 | AA19: ACT | AB19: 32 | AC19: 35 | AD19: =+('First tier 2018'!$AB19+'First tier 2018'!$AC19)/2 -> 33.5 | AE19: 91% | AF19: 19% | AG19: 27 | AH19: $60,400 | AI19: 3 | AJ19: 41%
A20: 19 | B20: 18 | C20: Washington University in St. Louis | D20: MO | E20: Midwest | F20: Suburban | G20: 7540 | H20: Most selective | I20: 4 | J20: 47.2% | K20: 92% | L20: 51533 | N20: private | O20: 85 | P20: 4.1 | Q20: 4.5 | R20: 11 | S20: 96% | T20: 94% | U20: 15 | V20: 65% | W20: 11% | X20: 8 | Y20: 15 | Z20: 32-34 | AA20: ACT | AB20: 32 | AC20: 34 | AD20: =+('First tier 2018'!$AB20+'First tier 2018'!$AC20)/2 -> 33 | AE20: 86% | AF20: 17% | AG20: 6 | AH20: $57,300 | AI20: 26 | AJ20: 24%
A21: 20 | B21: 20 | C21: Georgetown University | D21: DC | E21: South | F21: Urban | G21: 7453 | H21: Most selective | I21: 4 | J21: 44.0% | K21: 96% | L21: 52300 | N21: private | O21: 80 | P21: 4.1 | Q21: 4.8 | R21: 14 | S21: 96% | T21: 94% | U21: 31 | V21: 61% | W21: 7% | X21: 11 | Y21: 21 | Z21: 1320-1520 | AA21: SAT | AB21: 1320 | AC21: 1520 | AD21: =+('First tier 2018'!$AB21+'First tier 2018'!$AC21)/2 -> 1420 | AE21: 91% | AF21: 17% | AG21: 37 | AH21: $57,800 | AI21: 15 | AJ21: 31%
A22: 21 | B22: 21 | C22: Emory University | D22: GA | E22: South | F22: City | G22: 6861 | H22: Most selective | I22: 4 | J22: 41.1% | K22: 79% | L22: 49392 | N22: private | O22: 78 | P22: 4.0 | Q22: 4.4 | R22: 30 | S22: 94% | T22: 91% | U22: 19 | V22: 61% | W22: 13% | X22: 9 | Y22: 23 | Z22: 1290-1500 | AA22: SAT | AB22: 1290 | AC22: 1500 | AD22: =+('First tier 2018'!$AB22+'First tier 2018'!$AC22)/2 -> 1395 | AE22: 83% | AF22: 25% | AG22: 18 | AH22: $54,600 | AI22: 33 | AJ22: 21%
A23: 22 | B23: 21 | C23: University of California--Berkeley | D23: CA | E23: West | F23: City | G23: 29311 | H23: Most selective | I23: 4 | J23: 47.9% | K23: 14% | L23: 42112 | M23: 14098 | N23: public | O23: 78 | P23: 4.7 | Q23: 4.7 | R23: 21 | S23: 97% | T23: 92% | U23: 44 | V23: 52% | W23: 17% | X23: 18 | Y23: 19 | Z23: 1300-1530 | AA23: SAT | AB23: 1300 | AC23: 1530 | AD23: =+('First tier 2018'!$AB23+'First tier 2018'!$AC23)/2 -> 1415 | AE23: 98% | AF23: 16% | AG23: 37 | AH23: $61,800 | AI23: 79 | AJ23: 12%
A24: 23 | B24: 21 | C24: Univ. of California--Los Angeles | D24: CA | E24: West | F24: Urban | G24: 30873 | H24: Most selective | I24: 4 | J24: 43.3% | K24: 11% | L24: 41270 | M24: 13256 | N24: public | O24: 78 | P24: 4.3 | Q24: 4.4 | R24: 24 | S24: 97% | T24: 91% | U24: 22 | V24: 57% | W24: 18% | X24: 17 | Y24: 26 | Z24: 1160-1460 | AA24: SAT | AB24: 1160 | AC24: 1460 | AD24: =+('First tier 2018'!$AB24+'First tier 2018'!$AC24)/2 -> 1310 | AE24: 97% | AF24: 18% | AG24: 19 | AH24: $55,000 | AI24: 140 | AJ24: 8%
A25: 24 | B25: 21 | C25: Univ. of Southern California | D25: CA | E25: West | F25: Urban | G25: 18794 | H25: Most selective | I25: 4 | J25: 48.2% | K25: 33% | L25: 54259 | N25: private | O25: 78 | P25: 4.0 | Q25: 4.5 | R25: 24 | S25: 96% | T25: 92% | U25: 41 | V25: 59% | W25: 12% | X25: 8 | Y25: 29 | Z25: 1280-1500 | AA25: SAT | AB25: 1280 | AC25: 1500 | AD25: =+('First tier 2018'!$AB25+'First tier 2018'!$AC25)/2 -> 1390 | AE25: 88% | AF25: 17% | AG25: 22 | AH25: $56,700 | AI25: 3 | AJ25: 41%
A26: 25 | B26: 25 | C26: Carnegie Mellon University | D26: PA | E26: East | F26: Urban | G26: 6673 | H26: Most selective | I26: 4 | J26: 52.8% | K26: 85% | L26: 53910 | N26: private | O26: 76 | P26: 4.3 | Q26: 4.6 | R26: 32 | S26: 96% | T26: 90% | U26: 29 | V26: 67% | W26: 12% | X26: 13 | Y26: 23 | Z26: 1380-1550 | AA26: SAT | AB26: 1380 | AC26: 1550 | AD26: =+('First tier 2018'!$AB26+'First tier 2018'!$AC26)/2 -> 1465 | AE26: 75% | AF26: 22% | AG26: 37 | AH26: $69,700 | AI26: 56 | AJ26: 15%
A27: 26 | B27: 25 | C27: University of Virginia | D27: VA | E27: South | F27: Suburban | G27: 16331 | H27: Most selective | I27: 4 | J27: 45.6% | K27: 27% | L27: 46975 | M27: 16146 | N27: public | O27: 76 | P27: 4.2 | Q27: 4.5 | R27: 14 | S27: 97% | T27: 94% | U27: 33 | V27: 56% | W27: 15% | X27: 15 | Y27: 23 | Z27: 1240-1460 | AA27: SAT | AB27: 1240 | AC27: 1460 | AD27: =+('First tier 2018'!$AB27+'First tier 2018'!$AC27)/2 -> 1350 | AE27: 89% | AF27: 30% | AG27: 55 | AH27: $57,000 | AI27: 33 | AJ27: 21%
A28: 27 | B28: 27 | C28: Wake Forest University | D28: NC | E28: South | F28: Suburban | G28: 4955 | H28: Most selective | I28: 4 | J28: 47.2% | K28: 77% | L28: 51400 | N28: private | O28: 75 | P28: 3.6 | Q28: 4.2 | R28: 36 | S28: 94% | T28: 88% | U28: 24 | V28: 59% | W28: 1% | X28: 10 | Y28: 33 | Z28: 28-32 | AA28: ACT | AB28: 28 | AC28: 32 | AD28: =+('First tier 2018'!$AB28+'First tier 2018'!$AC28)/2 -> 30 | AE28: 78% | AF28: 30% | AG28: 11 | AH28: $52,800 | AI28: 25 | AJ28: 24%
A29: 28 | B29: 28 | C29: University of Michigan--Ann Arbor | D29: MI | E29: Midwest | F29: City | G29: 28983 | H29: Most selective | I29: 4 | J29: 50.2% | K29: 40% | L29: 47476 | M29: 14826 | N29: public | O29: 74 | P29: 4.4 | Q29: 4.5 | R29: 24 | S29: 97% | T29: 91% | U29: 50 | V29: 60% | W29: 17% | X29: 15 | Y29: 37 | Z29: 29-33 | AA29: ACT | AB29: 29 | AC29: 33 | AD29: =+('First tier 2018'!$AB29+'First tier 2018'!$AC29)/2 -> 31 | AE29: 74% | AF29: 29% | AG29: 42 | AH29: $58,400 | AI29: 47 | AJ29: 18%
A30: 29 | B30: 29 | C30: Tufts University | D30: MA | E30: East | F30: Suburban | G30: 5508 | H30: More selective | I30: 3 | J30: 49.7% | K30: 74% | L30: 54318 | N30: private | O30: 72 | P30: 3.7 | Q30: 4.5 | R30: 21 | S30: 96% | T30: 92% | U30: 33 | V30: 68% | W30: 7% | X30: 8 | Y30: 57 | Z30: 31-34 | AA30: ACT | AB30: 31 | AC30: 34 | AD30: =+('First tier 2018'!$AB30+'First tier 2018'!$AC30)/2 -> 32.5 | AE30: N/A | AF30: 14% | AG30: 32 | AH30: $56,700 | AI30: 36 | AJ30: 20%
A31: 30 | B31: 30 | C31: New York University | D31: NY | E31: East | F31: Urban | G31: 26135 | H31: More selective | I31: 3 | J31: 42.8% | K31: 62% | L31: 50464 | N31: private | O31: 71 | P31: 3.9 | Q31: 4.5 | R31: 49 | S31: 93% | T31: 85% | U31: 24 | V31: 60% | W31: 9% | X31: 10 | Y31: 39 | Z31: 1250-1480 | AA31: SAT | AB31: 1250 | AC31: 1480 | AD31: =+('First tier 2018'!$AB31+'First tier 2018'!$AC31)/2 -> 1365 | AE31: 61% | AF31: 32% | AG31: 32 | AH31: $54,400 | AI31: 110 | AJ31: 10%
A32: 31 | B32: 30 | C32: U. of North Carolina--Chapel Hill | D32: NC | E32: South | F32: Suburban | G32: 18523 | H32: Most selective | I32: 4 | J32: 41.5% | K32: 17% | L32: 34588 | N32: public | O32: 71 | P32: 4.0 | Q32: 4.5 | R32: 28 | S32: 97% | T32: 91% | U32: 94 | V32: 39% | W32: 14% | X32: 13 | Y32: 39 | Z32: 27-32 | AA32: ACT | AB32: 27 | AC32: 32 | AD32: =+('First tier 2018'!$AB32+'First tier 2018'!$AC32)/2 -> 29.5 | AE32: 73% | AF32: 27% | AG32: 27 | AH32: $47,600 | AI32: 51 | AJ32: 16%
A33: 32 | B33: 32 | C33: Boston College | D33: MA | E33: East | F33: Suburban | G33: 9309 | H33: Most selective | I33: 4 | J33: 46.3% | K33: 74% | L33: 53346 | N33: private | O33: 70 | P33: 3.6 | Q33: 4.4 | R33: 24 | S33: 95% | T33: 93% | U33: 59 | V33: 49% | W33: 7% | X33: 12 | Y33: 28 | Z33: 1260-1460 | AA33: SAT | AB33: 1260 | AC33: 1460 | AD33: =+('First tier 2018'!$AB33+'First tier 2018'!$AC33)/2 -> 1360 | AE33: 80% | AF33: 31% | AG33: 66 | AH33: $56,100 | AI33: 22 | AJ33: 25%
A34: 33 | B34: 32 | C34: College of William & Mary | D34: VA | E34: South | F34: Suburban | G34: 6276 | H34: Most selective | I34: 4 | J34: 42.4% | K34: 30% | L34: 43099 | N34: public | O34: 70 | P34: 3.8 | Q34: 4.3 | R34: 28 | S34: 96% | T34: 91% | U34: 44 | V34: 49% | W34: 7% | X34: 12 | Y34: 33 | Z34: 1250-1470 | AA34: SAT | AB34: 1250 | AC34: 1470 | AD34: =+('First tier 2018'!$AB34+'First tier 2018'!$AC34)/2 -> 1360 | AE34: 78% | AF34: 37% | AG34: 111 | AH34: $50,500 | AI34: 18 | AJ34: 28%
A35: 34 | B35: 34 | C35: Brandeis University | D35: MA | E35: East | F35: Suburban | G35: 3608 | H35: More selective | I35: 3 | J35: 42.3% | K35: 72% | L35: 53582 | N35: private | O35: 68 | P35: 3.6 | Q35: 4.2 | R35: 32 | S35: 93% | T35: 90% | U35: 44 | V35: 62% | W35: 10% | X35: 10 | Y35: 32 | Z35: 1270-1480 | AA35: SAT | AB35: 1270 | AC35: 1480 | AD35: =+('First tier 2018'!$AB35+'First tier 2018'!$AC35)/2 -> 1375 | AE35: 72% | AF35: 33% | AG35: 49 | AH35: $50,600 | AI35: 33 | AJ35: 21%
A36: 35 | B36: 34 | C36: Georgia Institute of Technology | D36: GA | E36: South | F36: Urban | G36: 15489 | H36: More selective | I36: 3 | J36: 63.3% | L36: 33014 | N36: public | O36: 68 | P36: 4.2 | Q36: 4.5 | R36: 41 | S36: 97% | T36: 86% | U36: 178 | V36: 38% | W36: 26% | X36: 20 | Y36: 22 | Z36: 1320-1500 | AA36: SAT | AB36: 1320 | AC36: 1500 | AD36: =+('First tier 2018'!$AB36+'First tier 2018'!$AC36)/2 -> 1410 | AE36: 87% | AF36: 26% | AG36: 55 | AH36: $65,700 | AI36: 26 | AJ36: 24%
A37: 36 | B37: 34 | C37: University of Rochester | D37: NY | E37: East | F37: Suburban | G37: 6386 | H37: More selective | I37: 3 | J37: 50.5% | L37: 52020 | N37: private | O37: 68 | P37: 3.4 | Q37: 3.9 | R37: 38 | S37: 96% | T37: 85% | U37: 23 | V37: 71% | W37: 12% | X37: 10 | Y37: 47 | Z37: 1250-1460 | AA37: SAT | AB37: 1250 | AC37: 1460 | AD37: =+('First tier 2018'!$AB37+'First tier 2018'!$AC37)/2 -> 1355 | AE37: 68% | AF37: 38% | AG37: 20 | AH37: $54,800 | AI37: 32 | AJ37: 21%
A38: 37 | B38: 37 | C38: Boston University | D38: MA | E38: East | F38: Urban | G38: 17944 | H38: More selective | I38: 3 | J38: 38.6% | L38: 52082 | N38: private | O38: 67 | P38: 3.6 | Q38: 4.3 | R38: 41 | S38: 93% | T38: 87% | U38: 37 | V38: 61% | W38: 13% | X38: 10 | Y38: 45 | Z38: 1220-1420 | AA38: SAT | AB38: 1220 | AC38: 1420 | AD38: =+('First tier 2018'!$AB38+'First tier 2018'!$AC38)/2 -> 1320 | AE38: 63% | AF38: 29% | AG38: 52 | AH38: $52,900 | AI38: 110 | AJ38: 10%
A39: 38 | B39: 37 | C39: Case Western Reserve Univ. | D39: OH | E39: Midwest | F39: Urban | G39: 5152 | H39: More selective | I39: 3 | J39: 55.1% | K39: 68% | L39: 47500 | N39: private | O39: 67 | P39: 3.7 | Q39: 4.2 | R39: 60 | S39: 93% | T39: 82% | U39: 55 | V39: 59% | W39: 13% | X39: 11 | Y39: 29 | Z39: 30-34 | AA39: ACT | AB39: 30 | AC39: 34 | AD39: =+('First tier 2018'!$AB39+'First tier 2018'!$AC39)/2 -> 32 | AE39: 71% | AF39: 35% | AG39: 41 | AH39: $61,300 | AI39: 41 | AJ39: 19%
A40: 39 | B40: 37 | C40: Univ. of California--Santa Barbara | D40: CA | E40: West | F40: Suburban | G40: 21574 | H40: More selective | I40: 3 | J40: 46.6% | K40: 5% | L40: 42423 | N40: public | O40: 67 | P40: 3.5 | Q40: 3.9 | R40: 56 | S40: 93% | T40: 88% | U40: 17 | V40: 49% | W40: 20% | X40: 17 | Y40: 33 | Z40: 1140-1390 | AA40: SAT | AB40: 1140 | AC40: 1390 | AD40: =+('First tier 2018'!$AB40+'First tier 2018'!$AC40)/2 -> 1265 | AE40: 100% | AF40: 36% | AG40: 69 | AH40: $52,200 | AI40: 54 | AJ40: 16%
A41: 40 | B41: 40 | C41: Northeastern University | D41: MA | E41: East | F41: Urban | G41: 13473 | H41: More selective | I41: 3 | J41: 49.4% | K41: 72% | L41: 49497 | N41: private | O41: 66 | P41: 3.3 | Q41: 4.2 | R41: 41 | S41: 97% | T41: 86% | U41: 27 | V41: 67% | W41: 6% | X41: 14 | Y41: 26 | Z41: 31-34 | AA41: ACT | AB41: 31 | AC41: 34 | AD41: =+('First tier 2018'!$AB41+'First tier 2018'!$AC41)/2 -> 32.5 | AE41: 76% | AF41: 29% | AG41: 81 | AH41: $56,600 | AI41: 92 | AJ41: 11%
A42: 41 | B42: 40 | C42: Tulane University | D42: LA | E42: South | F42: Urban | G42: 6377 | H42: More selective | I42: 3 | J42: 41.8% | K42: 76% | L42: 52960 | N42: private | O42: 66 | P42: 3.5 | Q42: 4.2 | R42: 66 | S42: 92% | T42: 83% | U42: 27 | V42: 62% | W42: 6% | X42: 8 | Y42: 37 | Z42: 29-33 | AA42: ACT | AB42: 29 | AC42: 33 | AD42: =+('First tier 2018'!$AB42+'First tier 2018'!$AC42)/2 -> 31 | AE42: 61% | AF42: 26% | AG42: 46 | AH42: $49,800 | AI42: 51 | AJ42: 17%
A43: 42 | B43: 42 | C43: Rensselaer Polytechnic Inst. | D43: NY | E43: East | F43: Suburban | G43: 6265 | H43: More selective | I43: 3 | J43: 68.5% | K43: 66% | L43: 52305 | N43: private | O43: 65 | P43: 3.5 | Q43: 4.4 | R43: 56 | S43: 93% | T43: 83% | U43: 41 | V43: 53% | W43: 13% | X43: 13 | Y43: 39 | Z43: 1280-1480 | AA43: SAT | AB43: 1280 | AC43: 1480 | AD43: =+('First tier 2018'!$AB43+'First tier 2018'!$AC43)/2 -> 1380 | AE43: 66% | AF43: 44% | AG43: 65 | AH43: $66,000 | AI43: 92 | AJ43: 11%
A44: 43 | B44: 42 | C44: University of California--Irvine | D44: CA | E44: West | F44: Suburban | G44: 27331 | H44: More selective | I44: 3 | J44: 46.9% | K44: 3% | L44: 43530 | M44: 15516 | N44: public | O44: 65 | P44: 3.6 | Q44: 4.1 | R44: 38 | S44: 92% | T44: 87% | U44: 29 | V44: 57% | W44: 21% | X44: 18 | Y44: 60 | Z44: 1060-1330 | AA44: SAT | AB44: 1060 | AC44: 1330 | AD44: =+('First tier 2018'!$AB44+'First tier 2018'!$AC44)/2 -> 1195 | AE44: 98% | AF44: 41% | AG44: 55 | AH44: $52,100 | AI44: 198 | AJ44: 5%
A45: 44 | B45: 42 | C45: Univ. of California--San Diego | D45: CA | E45: West | F45: Urban | G45: 28127 | H45: Most selective | I45: 4 | J45: 51.9% | K45: 6% | L45: 44197 | M45: 16183 | N45: public | O45: 65 | P45: 3.8 | Q45: 4.2 | R45: 36 | S45: 95% | T45: 87% | U45: 150 | V45: 36% | W45: 36% | X45: 19 | Y45: 29 | Z45: 1140-1420 | AA45: SAT | AB45: 1140 | AC45: 1420 | AD45: =+('First tier 2018'!$AB45+'First tier 2018'!$AC45)/2 -> 1280 | AE45: 100% | AF45: 36% | AG45: 22 | AH45: $55,000 | AI45: 198 | AJ45: 5%
A46: 45 | B46: 42 | C46: University of Florida | D46: FL | E46: South | F46: Suburban | G46: 34554 | H46: More selective | I46: 3 | J46: 44.7% | K46: 6% | L46: 28658 | M46: 6381 | N46: public | O46: 65 | P46: 3.7 | Q46: 3.9 | R46: 34 | S46: 96% | T46: 87% | U46: 89 | V46: 48% | W46: 15% | X46: 20 | Y46: 47 | Z46: 1180-1370 | AA46: SAT | AB46: 1180 | AC46: 1370 | AD46: =+('First tier 2018'!$AB46+'First tier 2018'!$AC46)/2 -> 1275 | AE46: 73% | AF46: 46% | AG46: 49 | AH46: $51,000 | AI46: 86 | AJ46: 12%
A47: 46 | B47: 46 | C47: Lehigh University | D47: PA | E47: East | F47: City | G47: 5080 | H47: More selective | I47: 3 | J47: 56.2% | K47: 74% | L47: 50740 | N47: private | O47: 64 | P47: 3.2 | Q47: 4.0 | R47: 34 | S47: 95% | T47: 89% | U47: 41 | V47: 50% | W47: 11% | X47: 9 | Y47: 43 | Z47: 1230-1420 | AA47: SAT | AB47: 1230 | AC47: 1420 | AD47: =+('First tier 2018'!$AB47+'First tier 2018'!$AC47)/2 -> 1325 | AE47: 64% | AF47: 26% | AG47: 55 | AH47: $63,700 | AI47: 36 | AJ47: 20%
A48: 47 | B48: 46 | C48: Pepperdine University | D48: CA | E48: West | F48: Suburban | G48: 3542 | H48: More selective | I48: 3 | J48: 41.2% | K48: 46% | L48: 51992 | N48: private | O48: 64 | P48: 3.3 | Q48: 4.3 | R48: 49 | S48: 92% | T48: 87% | U48: 37 | V48: 69% | W48: 2% | X48: 14 | Y48: 79 | Z48: 1110-1330 | AA48: SAT | AB48: 1110 | AC48: 1330 | AD48: =+('First tier 2018'!$AB48+'First tier 2018'!$AC48)/2 -> 1220 | AE48: 49% | AF48: 37% | AG48: 66 | AH48: $52,000 | AI48: 152 | AJ48: 8%
A49: 48 | B49: 46 | C49: University of California--Davis | D49: CA | E49: West | F49: City | G49: 29546 | H49: More selective | I49: 3 | J49: 40.7% | K49: 5% | L49: 42396 | M49: 14382 | N49: public | O49: 64 | P49: 3.9 | Q49: 4.2 | R49: 49 | S49: 93% | T49: 85% | U49: 106 | V49: 38% | W49: 27% | X49: 20 | Y49: 57 | Z49: 1050-1330 | AA49: SAT | AB49: 1050 | AC49: 1330 | AD49: =+('First tier 2018'!$AB49+'First tier 2018'!$AC49)/2 -> 1190 | AE49: 100% | AF49: 42% | AG49: 32 | AH49: $54,300 | AI49: 162 | AJ49: 7%
A50: 49 | B50: 46 | C50: University of Miami | D50: FL | E50: South | F50: Suburban | G50: 10849 | H50: More selective | I50: 3 | J50: 47.7% | K50: 58% | L50: 48484 | N50: private | O50: 64 | P50: 3.4 | Q50: 3.9 | R50: 60 | S50: 92% | T50: 82% | U50: 36 | V50: 54% | W50: 7% | X50: 12 | Y50: 47 | Z50: 28-32 | AA50: ACT | AB50: 28 | AC50: 32 | AD50: =+('First tier 2018'!$AB50+'First tier 2018'!$AC50)/2 -> 30 | AE50: 60% | AF50: 38% | AG50: 26 | AH50: $51,400 | AI50: 67 | AJ50: 14%
A51: 50 | B51: 46 | C51: Univ. of Wisconsin--Madison | D51: WI | E51: Midwest | F51: City | G51: 31710 | H51: More selective | I51: 3 | J51: 49.1% | K51: 33% | L51: 34782 | N51: public | O51: 64 | P51: 4.0 | Q51: 4.0 | R51: 41 | S51: 95% | T51: 85% | U51: 124 | V51: 44% | W51: 21% | X51: 18 | Y51: 52 | Z51: 27-31 | AA51: ACT | AB51: 27 | AC51: 31 | AD51: =+('First tier 2018'!$AB51+'First tier 2018'!$AC51)/2 -> 29 | AE51: 54% | AF51: 53% | AG51: 61 | AH51: $51,700 | AI51: 67 | AJ51: 13%
A52: 51 | B52: 46 | C52: Villanova University | D52: PA | E52: East | F52: Suburban | G52: 6999 | H52: More selective | I52: 3 | J52: 46.3% | K52: 78% | L52: 51434 | N52: private | O52: 64 | P52: 3.2 | Q52: 4.1 | R52: 30 | S52: 95% | T52: 90% | U52: 101 | V52: 42% | W52: 3% | X52: 12 | Y52: 45 | Z52: 30-32 | AA52: ACT | AB52: 30 | AC52: 32 | AD52: =+('First tier 2018'!$AB52+'First tier 2018'!$AC52)/2 -> 31 | AE52: 62% | AF52: 44% | AG52: 103 | AH52: $60,300 | AI52: 21 | AJ52: 26%
A53: 52 | B53: 52 | C53: Pennsylvania State U.--Univ. | D53: PA | E53: East | F53: City | G53: 41359 | H53: More selective | I53: 3 | J53: 53.4% | K53: 33% | L53: 33664 | M53: 18436 | N53: public | O53: 63 | P53: 3.7 | Q53: 3.9 | R53: 41 | S53: 93% | T53: 86% | U53: 166 | V53: 28% | W53: 19% | X53: 16 | Y53: 104 | Z53: 1090-1300 | AA53: SAT | AB53: 1090 | AC53: 1300 | AD53: =+('First tier 2018'!$AB53+'First tier 2018'!$AC53)/2 -> 1195 | AE53: 36% | AF53: 56% | AG53: 52 | AH53: $54,600 | AI53: 67 | AJ53: 14%
A54: 53 | B54: 52 | C54: U. of Illinois--Urbana-Champaign | D54: IL | E54: Midwest | F54: City | G54: 33932 | H54: More selective | I54: 3 | J54: 54.8% | K54: 14% | L54: 31988 | N54: public | O54: 63 | P54: 3.9 | Q54: 3.9 | R54: 47 | S54: 94% | T54: 85% | U54: 83 | V54: 40% | W54: 21% | X54: 20 | Y54: 60 | Z54: 26-32 | AA54: ACT | AB54: 26 | AC54: 32 | AD54: =+('First tier 2018'!$AB54+'First tier 2018'!$AC54)/2 -> 29 | AE54: 49% | AF54: 60% | AG54: 61 | AH54: $57,300 | AI54: 127 | AJ54: 8%
A55: 54 | B55: 54 | C55: Ohio State University--Columbus | D55: OH | E55: Midwest | F55: Urban | G55: 45831 | H55: More selective | I55: 3 | J55: 52.1% | K55: 19% | L55: 29659 | N55: public | O55: 62 | P55: 3.8 | Q55: 4.1 | R55: 49 | S55: 94% | T55: 84% | U55: 166 | V55: 30% | W55: 22% | X55: 19 | Y55: 52 | Z55: 27-31 | AA55: ACT | AB55: 27 | AC55: 31 | AD55: =+('First tier 2018'!$AB55+'First tier 2018'!$AC55)/2 -> 29 | AE55: 63% | AF55: 54% | AG55: 76 | AH55: $50,600 | AI55: 63 | AJ55: 14%
A56: 55 | B56: 54 | C56: University of Georgia | D56: GA | E56: South | F56: City | G56: 27951 | H56: More selective | I56: 3 | J56: 43.2% | K56: 8% | L56: 30392 | M56: 11818 | N56: public | O56: 62 | P56: 3.5 | Q56: 4.1 | R56: 47 | S56: 95% | T56: 85% | U56: 44 | V56: 46% | W56: 11% | X56: 18 | Y56: 64 | Z56: 1140-1340 | AA56: SAT | AB56: 1140 | AC56: 1340 | AD56: =+('First tier 2018'!$AB56+'First tier 2018'!$AC56)/2 -> 1240 | AE56: 55% | AF56: 54% | AG56: 121 | AH56: $47,500 | AI56: 76 | AJ56: 13%
A57: 56 | B57: 56 | C57: George Washington University | D57: DC | E57: South | F57: Urban | G57: 11504 | H57: More selective | I57: 3 | J57: 42.9% | K57: 97% | L57: 53518 | N57: private | O57: 61 | P57: 3.6 | Q57: 4.4 | R57: 60 | S57: 92% | T57: 84% | U57: 83 | V57: 51% | W57: 10% | X57: 13 | Y57: 55 | Z57: 1180-1390 | AA57: SAT | AB57: 1180 | AC57: 1390 | AD57: =+('First tier 2018'!$AB57+'First tier 2018'!$AC57)/2 -> 1285 | AE57: 55% | AF57: 40% | AG57: 55 | AH57: $51,800 | AI57: 127 | AJ57: 9%
A58: 57 | B58: 56 | C58: Purdue Univ.--West Lafayette | D58: IN | E58: Midwest | F58: City | G58: 30043 | H58: More selective | I58: 3 | J58: 57.7% | K58: 36% | L58: 28804 | M58: 10002 | N58: public | O58: 61 | P58: 3.8 | Q58: 4.2 | R58: 92 | S58: 92% | T58: 77% | U58: 74 | V58: 38% | W58: 18% | X58: 12 | Y58: 84 | Z58: 1080-1330 | AA58: SAT | AB58: 1080 | AC58: 1330 | AD58: =+('First tier 2018'!$AB58+'First tier 2018'!$AC58)/2 -> 1205 | AE58: 43% | AF58: 56% | AG58: 87 | AH58: $57,500 | AI58: 41 | AJ58: 19%
A59: 58 | B59: 56 | C59: University of Connecticut | D59: CT | E59: East | F59: Rural | G59: 19324 | H59: More selective | I59: 3 | J59: 49.9% | K59: 22% | L59: 36948 | M59: 14880 | N59: public | O59: 61 | P59: 3.3 | Q59: 3.9 | R59: 56 | S59: 93% | T59: 82% | U59: 83 | V59: 51% | W59: 15% | X59: 16 | Y59: 76 | Z59: 1130-1340 | AA59: SAT | AB59: 1130 | AC59: 1340 | AD59: =+('First tier 2018'!$AB59+'First tier 2018'!$AC59)/2 -> 1235 | AE59: 51% | AF59: 49% | AG59: 32 | AH59: $54,400 | AI59: 92 | AJ59: 11%
A60: 59 | B60: 56 | C60: University of Texas--Austin | D60: TX | E60: South | F60: Urban | G60: 40168 | H60: More selective | I60: 3 | J60: 47.4% | K60: 5% | L60: 35766 | M60: 10136 | N60: public | O60: 61 | P60: 4.0 | Q60: 4.2 | R60: 60 | S60: 95% | T60: 81% | U60: 145 | V60: 35% | W60: 26% | X60: 18 | Y60: 51 | Z60: 1140-1410 | AA60: SAT | AB60: 1140 | AC60: 1410 | AD60: =+('First tier 2018'!$AB60+'First tier 2018'!$AC60)/2 -> 1275 | AE60: 70% | AF60: 40% | AG60: 76 | AH60: $54,400 | AI60: 86 | AJ60: 12%
A61: 60 | B61: 56 | C61: University of Washington | D61: WA | E61: West | F61: Urban | G61: 30933 | H61: More selective | I61: 3 | J61: 47.7% | K61: 17% | L61: 35538 | N61: public | O61: 61 | P61: 3.9 | Q61: 3.9 | R61: 49 | S61: 94% | T61: 84% | U61: 184 | V61: 32% | W61: 24% | X61: 17 | Y61: 67 | Z61: 1120-1370 | AA61: SAT | AB61: 1120 | AC61: 1370 | AD61: =+('First tier 2018'!$AB61+'First tier 2018'!$AC61)/2 -> 1245 | AE61: 62% | AF61: 45% | AG61: 31 | AH61: $54,400 | AI61: 79 | AJ61: 12%
A62: 61 | B62: 61 | C62: Brigham Young Univ.--Provo | D62: UT | E62: West | F62: City | G62: 30979 | H62: More selective | I62: 3 | J62: 52.0% | K62: 66% | L62: 5460 | N62: private | O62: 60 | P62: 3.1 | Q62: 3.8 | R62: 77 | S62: 88% | T62: 83% | U62: 21 | V62: 55% | W62: 14% | X62: 21 | Y62: 55 | Z62: 27-31 | AA62: ACT | AB62: 27 | AC62: 31 | AD62: =+('First tier 2018'!$AB62+'First tier 2018'!$AC62)/2 -> 29 | AE62: 55% | AF62: 51% | AG62: 174 | AH62: $54,100 | AI62: 67 | AJ62: 13%
A63: 62 | B63: 61 | C63: Fordham University | D63: NY | E63: East | F63: Urban | G63: 9258 | H63: More selective | I63: 3 | J63: 42.8% | K63: 57% | L63: 50601 | N63: private | O63: 60 | P63: 3.2 | Q63: 4.1 | R63: 70 | S63: 91% | T63: 80% | U63: 44 | V63: 50% | W63: 1% | X63: 14 | Y63: 67 | Z63: 1170-1370 | AA63: SAT | AB63: 1170 | AC63: 1370 | AD63: =+('First tier 2018'!$AB63+'First tier 2018'!$AC63)/2 -> 1270 | AE63: 46% | AF63: 45% | AG63: 97 | AH63: $51,300 | AI63: 56 | AJ63: 15%
A64: 63 | B64: 61 | C64: Southern Methodist University | D64: TX | E64: South | F64: Urban | G64: 6521 | H64: More selective | I64: 3 | J64: 50.0% | K64: 54% | L64: 52498 | N64: private | O64: 60 | P64: 3.1 | Q64: 3.8 | R64: 77 | S64: 90% | T64: 79% | U64: 33 | V64: 59% | W64: 9% | X64: 11 | Y64: 57 | Z64: 28-32 | AA64: ACT | AB64: 28 | AC64: 32 | AD64: =+('First tier 2018'!$AB64+'First tier 2018'!$AC64)/2 -> 30 | AE64: 49% | AF64: 49% | AG64: 69 | AH64: $52,600 | AI64: 26 | AJ64: 24%
A65: 64 | B65: 61 | C65: Syracuse University | D65: NY | E65: East | F65: City | G65: 15218 | H65: More selective | I65: 3 | J65: 45.5% | K65: 59% | L65: 46755 | N65: private | O65: 60 | P65: 3.3 | Q65: 3.9 | R65: 66 | S65: 92% | T65: 82% | U65: 55 | V65: 59% | W65: 10% | X65: 15 | Y65: 96 | Z65: 1090-1290 | AA65: SAT | AB65: 1090 | AC65: 1290 | AD65: =+('First tier 2018'!$AB65+'First tier 2018'!$AC65)/2 -> 1190 | AE65: 36% | AF65: 52% | AG65: 97 | AH65: $51,400 | AI65: 56 | AJ65: 15%
A66: 65 | B66: 61 | C66: Univ. of Maryland--College Park | D66: MD | E66: South | F66: Suburban | G66: 28472 | H66: More selective | I66: 3 | J66: 53.3% | K66: 21% | L66: 33606 | M66: 10399 | N66: public | O66: 60 | P66: 3.6 | Q66: 4.0 | R66: 38 | S66: 95% | T66: 87% | U66: 128 | V66: 45% | W66: 17% | X66: 17 | Y66: 47 | Z66: 1210-1420 | AA66: SAT | AB66: 1210 | AC66: 1420 | AD66: =+('First tier 2018'!$AB66+'First tier 2018'!$AC66)/2 -> 1315 | AE66: 71% | AF66: 48% | AG66: 87 | AH66: $56,400 | AI66: 152 | AJ66: 8%
A67: 66 | B67: 61 | C67: Worcester Polytechnic Inst. | D67: MA | E67: East | F67: City | G67: 4432 | H67: More selective | I67: 3 | J67: 66.3% | K67: 57% | L67: 48628 | N67: private | O67: 60 | P67: 3.0 | Q67: 3.8 | R67: 41 | S67: 96% | T67: 86% | U67: 37 | V67: 65% | W67: 10% | X67: 13 | Y67: 52 | Z67: 1200-1400 | AA67: SAT | AB67: 1200 | AC67: 1400 | AD67: =+('First tier 2018'!$AB67+'First tier 2018'!$AC67)/2 -> 1300 | AE67: 65% | AF67: 48% | AG67: 87 | AH67: $67,300 | AI67: 92 | AJ67: 11%
A68: 67 | B68: 67 | C68: Clemson University | D68: SC | E68: South | F68: Suburban | G68: 18599 | H68: More selective | I68: 3 | J68: 52.3% | L68: 35654 | M68: 14712 | N68: public | O68: 59 | P68: 3.3 | Q68: 4.0 | R68: 60 | S68: 93% | T68: 81% | U68: 89 | V68: 51% | W68: 15% | X68: 18 | Y68: 64 | Z68: 26-31 | AA68: ACT | AB68: 26 | AC68: 31 | AD68: =+('First tier 2018'!$AB68+'First tier 2018'!$AC68)/2 -> 28.5 | AE68: 57% | AF68: 51% | AG68: 129 | AH68: $53,600 | AI68: 29 | AJ68: 23%
A69: 68 | B69: 68 | C69: University of Pittsburgh | D69: PA | E69: East | F69: Urban | G69: 19123 | H69: More selective | I69: 3 | J69: 48.4% | K69: 28% | L69: 30642 | N69: public | O69: 58 | P69: 3.5 | Q69: 3.7 | R69: 66 | S69: 92% | T69: 81% | U69: 159 | V69: 41% | W69: 20% | X69: 15 | Y69: 67 | Z69: 1190-1380 | AA69: SAT | AB69: 1190 | AC69: 1380 | AD69: =+('First tier 2018'!$AB69+'First tier 2018'!$AC69)/2 -> 1285 | AE69: 52% | AF69: 55% | AG69: 42 | AH69: $50,600 | AI69: 110 | AJ69: 10%
A70: 69 | B70: 69 | C70: American University | D70: DC | E70: South | F70: Suburban | G70: 7901 | H70: More selective | I70: 3 | J70: 36.7% | K70: 82% | L70: 46615 | N70: private | O70: 57 | P70: 3.2 | Q70: 4.0 | R70: 70 | S70: 89% | T70: 81% | U70: 59 | V70: 52% | W70: 1% | X70: 12 | Y70: 71 | Z70: 1150-1340 | AA70: SAT | AB70: 1150 | AC70: 1340 | AD70: =+('First tier 2018'!$AB70+'First tier 2018'!$AC70)/2 -> 1245 | AE70: 35% | AF70: 26% | AG70: 87 | AH70: $47,400 | AI70: 184 | AJ70: 6%
A71: 70 | B71: 69 | C71: Rutgers University--New Brunswick | D71: NJ | E71: East | F71: City | G71: 36168 | H71: More selective | I71: 3 | J71: 49.7% | K71: 6% | L71: 30023 | M71: 14372 | N71: public | O71: 57 | P71: 3.4 | Q71: 4.0 | R71: 70 | S71: 92% | T71: 80% | U71: 106 | V71: 38% | W71: 22% | X71: 13 | Y71: 96 | Z71: 1110-1350 | AA71: SAT | AB71: 1110 | AC71: 1350 | AD71: =+('First tier 2018'!$AB71+'First tier 2018'!$AC71)/2 -> 1230 | AE71: 41% | AF71: 57% | AG71: 76 | AH71: $53,300 | AI71: 140 | AJ71: 8%
A72: 71 | B72: 69 | C72: Stevens Institute of Technology | D72: NJ | E72: East | F72: City | G72: 3021 | H72: Most selective | I72: 4 | J72: 70.1% | K72: 38% | L72: 50554 | N72: private | O72: 57 | P72: 2.8 | Q72: 3.8 | R72: 56 | S72: 94% | T72: 83% | U72: 74 | V72: 36% | W72: 9% | X72: 10 | Y72: 43 | Z72: 1260-1440 | AA72: SAT | AB72: 1260 | AC72: 1440 | AD72: =+('First tier 2018'!$AB72+'First tier 2018'!$AC72)/2 -> 1350 | AE72: 65% | AF72: 39% | AG72: 114 | AH72: $67,000 | AI72: 49 | AJ72: 17%
A73: 72 | B73: 69 | C73: Texas A&M Univ.--College Station | D73: TX | E73: South | F73: City | G73: 50735 | H73: More selective | I73: 3 | J73: 51.4% | K73: 4% | L73: 30208 | M73: 10030 | N73: public | O73: 57 | P73: 3.6 | Q73: 4.1 | R73: 73 | S73: 91% | T73: 80% | U73: 184 | V73: 22% | W73: 26% | X73: 21 | Y73: 80 | Z73: 1070-1310 | AA73: SAT | AB73: 1070 | AC73: 1310 | AD73: =+('First tier 2018'!$AB73+'First tier 2018'!$AC73)/2 -> 1190 | AE73: 66% | AF73: 66% | AG73: 87 | AH73: $55,800 | AI73: 47 | AJ73: 17%
A74: 73 | B74: 69 | C74: Univ. of Minnesota--Twin Cities | D74: MI | E74: Midwest | F74: Urban | G74: 34871 | H74: More selective | I74: 3 | J74: 48.3% | K74: 27% | L74: 26603 | M74: 14417 | N74: public | O74: 57 | P74: 3.7 | Q74: 3.8 | R74: 81 | S74: 92% | T74: 78% | U74: 215 | V74: 36% | W74: 21% | X74: 17 | Y74: 60 | Z74: 26-31 | AA74: ACT | AB74: 26 | AC74: 31 | AD74: =+('First tier 2018'!$AB74+'First tier 2018'!$AC74)/2 -> 28.5 | AE74: 48% | AF74: 44% | AG74: 46 | AH74: $51,600 | AI74: 127 | AJ74: 9%
A75: 74 | B75: 69 | C75: Virginia Tech | D75: VA | E75: South | F75: Rural | G75: 25791 | H75: More selective | I75: 3 | J75: 57.3% | L75: 29371 | N75: public | O75: 57 | P75: 3.5 | Q75: 4.1 | R75: 49 | S75: 93% | T75: 84% | U75: 166 | V75: 29% | W75: 21% | X75: 14 | Y75: 124 | Z75: 1100-1320 | AA75: SAT | AB75: 1100 | AC75: 1320 | AD75: =+('First tier 2018'!$AB75+'First tier 2018'!$AC75)/2 -> 1210 | AE75: 40% | AF75: 71% | AG75: 114 | AH75: $57,900 | AI75: 92 | AJ75: 11%
A76: 75 | B76: 75 | C76: Baylor University | D76: TX | E76: South | F76: City | G76: 14348 | H76: More selective | I76: 3 | J76: 42.1% | K76: 29% | L76: 43790 | N76: private | O76: 56 | P76: 3.1 | Q76: 3.9 | R76: 96 | S76: 89% | T76: 74% | U76: 44 | V76: 52% | W76: 9% | X76: 15 | Y76: 71 | Z76: 26-30 | AA76: ACT | AB76: 26 | AC76: 30 | AD76: =+('First tier 2018'!$AB76+'First tier 2018'!$AC76)/2 -> 28 | AE76: 41% | AF76: 40% | AG76: 103 | AH76: $50,700 | AI76: 49 | AJ76: 17%
A77: 76 | B77: 75 | C77: Colorado School of Mines | D77: CO | E77: West | F77: Suburban | G77: 4612 | H77: Most selective | I77: 4 | J77: 72.0% | K77: 38% | L77: 37436 | M77: 18386 | N77: public | O77: 56 | P77: 3.3 | Q77: 4.3 | R77: 83 | S77: 93% | T77: 77% | U77: 159 | V77: 35% | W77: 21% | X77: 15 | Y77: 39 | Z77: 29-32 | AA77: ACT | AB77: 29 | AC77: 32 | AD77: =+('First tier 2018'!$AB77+'First tier 2018'!$AC77)/2 -> 30.5 | AE77: 56% | AF77: 40% | AG77: 87 | AH77: $68,000 | AI77: 79 | AJ77: 13%
A78: 77 | B78: 75 | C78: Univ. of Massachusetts--Amherst | D78: MA | E78: East | F78: Suburban | G78: 23373 | H78: More selective | I78: 3 | J78: 51.2% | K78: 19% | L78: 33662 | N78: public | O78: 56 | P78: 3.4 | Q78: 3.8 | R78: 90 | S78: 90% | T78: 76% | U78: 74 | V78: 49% | W78: 17% | X78: 18 | Y78: 92 | Z78: 1130-1330 | AA78: SAT | AB78: 1130 | AC78: 1330 | AD78: =+('First tier 2018'!$AB78+'First tier 2018'!$AC78)/2 -> 1230 | AE78: 34% | AF78: 60% | AG78: 114 | AH78: $51,700 | AI78: 127 | AJ78: 9%
A79: 78 | B79: 78 | C79: Miami University--Oxford | D79: OH | E79: Midwest | F79: Rural | G79: 16981 | H79: More selective | I79: 3 | J79: 49.3% | K79: 36% | L79: 32768 | N79: public | O79: 55 | P79: 3.2 | Q79: 3.8 | R79: 73 | S79: 91% | T79: 78% | U79: 128 | V79: 36% | W79: 10% | X79: 17 | Y79: 71 | Z79: 26-31 | AA79: ACT | AB79: 26 | AC79: 31 | AD79: =+('First tier 2018'!$AB79+'First tier 2018'!$AC79)/2 -> 28.5 | AE79: 39% | AF79: 65% | AG79: 226 | AH79: $51,400 | AI79: 38 | AJ79: 20%
A80: 79 | B80: 78 | C80: Texas Christian University | D80: TX | E80: South | F80: Suburban | G80: 8891 | H80: More selective | I80: 3 | J80: 39.7% | K80: 46% | L80: 44760 | N80: private | O80: 55 | P80: 2.9 | Q80: 3.6 | R80: 83 | S80: 90% | T80: 77% | U80: 50 | V80: 43% | W80: 5% | X80: 13 | Y80: 71 | Z80: 25-30 | AA80: ACT | AB80: 25 | AC80: 30 | AD80: =+('First tier 2018'!$AB80+'First tier 2018'!$AC80)/2 -> 27.5 | AE80: 44% | AF80: 38% | AG80: 158 | AH80: $50,700 | AI80: 43 | AJ80: 19%
A81: 80 | B81: 78 | C81: University of Iowa | D81: IA | E81: Midwest | F81: City | G81: 24476 | H81: More selective | I81: 3 | J81: 47.6% | K81: 35% | L81: 28813 | N81: public | O81: 55 | P81: 3.6 | Q81: 3.6 | R81: 104 | S81: 86% | T81: 72% | U81: 55 | V81: 52% | W81: 12% | X81: 16 | Y81: 116 | Z81: 23-28 | AA81: ACT | AB81: 23 | AC81: 28 | AD81: =+('First tier 2018'!$AB81+'First tier 2018'!$AC81)/2 -> 25.5 | AE81: 28% | AF81: 84% | AG81: 76 | AH81: $48,100 | AI81: 102 | AJ81: 10%
A82: 81 | B82: 81 | C82: Clark University | D82: MA | E82: East | F82: City | G82: 2289 | H82: More selective | I82: 3 | J82: 39.0% | K82: 62% | L82: 44400 | N82: private | O82: 54 | P82: 2.9 | Q82: 3.5 | R82: 77 | S82: 88% | T82: 75% | U82: 37 | V82: 59% | W82: 5% | X82: 9 | Y82: 89 | Z82: 1110-1325 | AA82: SAT | AB82: 1110 | AC82: 1325 | AD82: =+('First tier 2018'!$AB82+'First tier 2018'!$AC82)/2 -> 1217.5 | AE82: 36% | AF82: 55% | AG82: 163 | AH82: $43,600 | AI82: 43 | AJ82: 18%
A83: 82 | B83: 81 | C83: Florida State University | D83: FL | E83: South | F83: City | G83: 32929 | H83: More selective | I83: 3 | J83: 44.6% | K83: 10% | L83: 21673 | N83: public | O83: 54 | P83: 3.2 | Q83: 3.6 | R83: 73 | S83: 93% | T83: 80% | U83: 106 | V83: 33% | W83: 17% | X83: 24 | Y83: 89 | Z83: 25-29 | AA83: ACT | AB83: 25 | AC83: 29 | AD83: =+('First tier 2018'!$AB83+'First tier 2018'!$AC83)/2 -> 27 | AE83: 41% | AF83: 58% | AG83: 211 | AH83: $44,800 | AI83: 38 | AJ83: 20%
A84: 83 | B84: 81 | C84: Michigan State University | D84: MI | E84: Midwest | F84: Suburban | G84: 39090 | H84: More selective | I84: 3 | J84: 49.4% | K84: 14% | L84: 39405 | N84: public | O84: 54 | P84: 3.6 | Q84: 3.8 | R84: 77 | S84: 92% | T84: 78% | U84: 210 | V84: 27% | W84: 23% | X84: 17 | Y84: 110 | Z84: 24-29 | AA84: ACT | AB84: 24 | AC84: 29 | AD84: =+('First tier 2018'!$AB84+'First tier 2018'!$AC84)/2 -> 26.5 | AE84: 30% | AF84: 66% | AG84: 103 | AI84: 140 | AJ84: 8%
A85: 84 | B85: 81 | C85: North Carolina State U.--Raleigh | D85: NC | E85: South | F85: City | G85: 23847 | H85: More selective | I85: 3 | J85: 54.9% | K85: 10% | L85: 27406 | N85: public | O85: 54 | P85: 3.2 | Q85: 3.5 | R85: 81 | S85: 94% | T85: 78% | U85: 138 | V85: 38% | W85: 15% | X85: 13 | Y85: 64 | Z85: 27-31 | AA85: ACT | AB85: 27 | AC85: 31 | AD85: =+('First tier 2018'!$AB85+'First tier 2018'!$AC85)/2 -> 29 | AE85: 50% | AF85: 46% | AG85: 97 | AH85: $52,800 | AI85: 86 | AJ85: 11%
A86: 85 | B86: 81 | C86: Univ. of California--Santa Cruz | D86: CA | E86: West | F86: Suburban | G86: 16962 | H86: More selective | I86: 3 | J86: 49.1% | K86: 3% | L86: 42042 | N86: public | O86: 54 | P86: 3.1 | Q86: 3.8 | R86: 83 | S86: 90% | T86: 79% | U86: 55 | V86: 49% | W86: 24% | X86: 18 | Y86: 67 | Z86: 1060-1300 | AA86: SAT | AB86: 1060 | AC86: 1300 | AD86: =+('First tier 2018'!$AB86+'First tier 2018'!$AC86)/2 -> 1180 | AE86: 96% | AF86: 59% | AG86: 103 | AH86: $49,900 | AI86: 227 | AJ86: 4%
A87: 86 | B87: 81 | C87: University of Delaware | D87: DE | E87: East | F87: Suburban | G87: 18374 | H87: More selective | I87: 3 | J87: 42.3% | K87: 62% | L87: 32250 | M87: 12830 | N87: public | O87: 54 | P87: 3.2 | Q87: 3.7 | R87: 60 | S87: 92% | T87: 83% | U87: 128 | V87: 33% | W87: 16% | X87: 15 | Y87: 124 | Z87: 1090-1300 | AA87: SAT | AB87: 1090 | AC87: 1300 | AD87: =+('First tier 2018'!$AB87+'First tier 2018'!$AC87)/2 -> 1195 | AE87: 31% | AF87: 65% | AG87: 84 | AH87: $52,300 | AI87: 140 | AJ87: 8%
A88: 87 | B88: 87 | C88: Binghamton University--SUNY | D88: NY | E88: East | F88: Suburban | G88: 13632 | H88: More selective | I88: 3 | J88: 51.5% | K88: 7% | L88: 24403 | N88: public | O88: 53 | P88: 3.0 | Q88: 3.5 | R88: 66 | S88: 91% | T88: 83% | U88: 69 | V88: 46% | W88: 13% | X88: 19 | Y88: 87 | Z88: 1230-1400 | AA88: SAT | AB88: 1230 | AC88: 1400 | AD88: =+('First tier 2018'!$AB88+'First tier 2018'!$AC88)/2 -> 1315 | AE88: N/A | AF88: 41% | AG88: 190 | AH88: $54,400 | AI88: 173 | AJ88: 6%
A89: 88 | B89: 87 | C89: University of Denver | D89: CO | E89: West | F89: City | G89: 5754 | H89: More selective | I89: 3 | J89: 46.5% | K89: 62% | L89: 48669 | N89: private | O89: 53 | P89: 2.9 | Q89: 3.6 | R89: 90 | S89: 86% | T89: 79% | U89: 62 | V89: 53% | W89: 5% | X89: 11 | Y89: 76 | Z89: 26-31 | AA89: ACT | AB89: 26 | AC89: 31 | AD89: =+('First tier 2018'!$AB89+'First tier 2018'!$AC89)/2 -> 28.5 | AE89: 42% | AF89: 53% | AG89: 87 | AH89: $48,900 | AI89: 127 | AJ89: 9%
A90: 89 | B90: 87 | C90: University of Tulsa | D90: OK | E90: South | F90: City | G90: 3406 | H90: Most selective | I90: 4 | J90: 56.8% | K90: 42% | L90: 39502 | N90: private | O90: 53 | P90: 2.7 | Q90: 3.5 | R90: 104 | S90: 90% | T90: 73% | U90: 31 | V90: 62% | W90: 3% | X90: 11 | Y90: 33 | Z90: 26-33 | AA90: ACT | AB90: 26 | AC90: 33 | AD90: =+('First tier 2018'!$AB90+'First tier 2018'!$AC90)/2 -> 29.5 | AE90: 76% | AF90: 37% | AG90: 72 | AH90: $52,800 | AI90: 38 | AJ90: 20%
A91: 90 | B91: 90 | C91: Indiana University--Bloomington | D91: IN | E91: Midwest | F91: City | G91: 39184 | H91: More selective | I91: 3 | J91: 50.6% | K91: 33% | L91: 34845 | M91: 10533 | N91: public | O91: 52 | P91: 3.6 | Q91: 3.8 | R91: 83 | S91: 90% | T91: 76% | U91: 184 | V91: 35% | W91: 18% | X91: 17 | Y91: 116 | Z91: 1060-1290 | AA91: SAT | AB91: 1060 | AC91: 1290 | AD91: =+('First tier 2018'!$AB91+'First tier 2018'!$AC91)/2 -> 1175 | AE91: 35% | AF91: 79% | AG91: 163 | AH91: $47,900 | AI91: 92 | AJ91: 11%
A92: 91 | B92: 90 | C92: Marquette University | D92: WI | E92: Midwest | F92: Urban | G92: 8238 | H92: More selective | I92: 3 | J92: 45.9% | K92: 68% | L92: 39900 | N92: private | O92: 52 | P92: 3.1 | Q92: 3.9 | R92: 73 | S92: 90% | T92: 81% | U92: 184 | V92: 40% | W92: 14% | X92: 14 | Y92: 96 | Z92: 24-29 | AA92: ACT | AB92: 24 | AC92: 29 | AD92: =+('First tier 2018'!$AB92+'First tier 2018'!$AC92)/2 -> 26.5 | AE92: 31% | AF92: 74% | AG92: 114 | AH92: $52,800 | AI92: 63 | AJ92: 14%
A93: 92 | B93: 90 | C93: University of Colorado--Boulder | D93: CO | E93: West | F93: City | G93: 27846 | H93: More selective | I93: 3 | J93: 55.8% | K93: 41% | L93: 35079 | N93: public | O93: 52 | P93: 3.6 | Q93: 3.7 | R93: 110 | S93: 86% | T93: 70% | U93: 74 | V93: 46% | W93: 16% | X93: 17 | Y93: 104 | Z93: 25-30 | AA93: ACT | AB93: 25 | AC93: 30 | AD93: =+('First tier 2018'!$AB93+'First tier 2018'!$AC93)/2 -> 27.5 | AE93: 29% | AF93: 77% | AG93: 87 | AH93: $51,500 | AI93: 173 | AJ93: 6%
A94: 93 | B94: 90 | C94: University of San Diego | D94: CA | E94: West | F94: Urban | G94: 5711 | H94: More selective | I94: 3 | J94: 45.9% | K94: 38% | L94: 47708 | N94: private | O94: 52 | P94: 2.9 | Q94: 3.7 | R94: 83 | S94: 89% | T94: 78% | U94: 74 | V94: 41% | W94: 0% | X94: 14 | Y94: 80 | Z94: 26-30 | AA94: ACT | AB94: 26 | AC94: 30 | AD94: =+('First tier 2018'!$AB94+'First tier 2018'!$AC94)/2 -> 28 | AE94: 39% | AF94: 51% | AG94: 103 | AH94: $51,300 | AI94: 79 | AJ94: 12%
A95: 94 | B95: 94 | C95: Drexel University | D95: PA | E95: East | F95: Urban | G95: 13251 | H95: More selective | I95: 3 | J95: 51.3% | K95: 47% | L95: 52002 | N95: private | O95: 51 | P95: 3.1 | Q95: 3.8 | R95: 125 | S95: 86% | T95: 70% | U95: 62 | V95: 57% | W95: 9% | X95: 10 | Y95: 104 | Z95: 1080-1300 | AA95: SAT | AB95: 1080 | AC95: 1300 | AD95: =+('First tier 2018'!$AB95+'First tier 2018'!$AC95)/2 -> 1190 | AE95: 40% | AF95: 75% | AG95: 61 | AH95: $58,000 | AI95: 162 | AJ95: 7%
A96: 95 | B96: 94 | C96: Saint Louis University | D96: MO | E96: Midwest | F96: Urban | G96: 7454 | H96: More selective | I96: 3 | J96: 40.7% | K96: 58% | L96: 42166 | N96: private | O96: 51 | P96: 2.9 | Q96: 3.7 | R96: 97 | S96: 89% | T96: 77% | U96: 94 | V96: 51% | W96: 7% | X96: 9 | Y96: 76 | Z96: 24-30 | AA96: ACT | AB96: 24 | AC96: 30 | AD96: =+('First tier 2018'!$AB96+'First tier 2018'!$AC96)/2 -> 27 | AE96: 41% | AF96: 65% | AG96: 97 | AH96: $49,200 | AI96: 92 | AJ96: 11%
A97: 96 | B97: 94 | C97: Yeshiva University | D97: NY | E97: East | F97: Urban | G97: 2714 | H97: More selective | I97: 3 | J97: 54.6% | K97: 63% | L97: 42000 | N97: private | O97: 51 | P97: 2.8 | Q97: N/A | R97: 49 | S97: 90% | T97: 82% | U97: 94 | V97: 55% | W97: 1% | X97: 8 | Y97: 110 | Z97: 1090-1360 | AA97: SAT | AB97: 1090 | AC97: 1360 | AD97: =+('First tier 2018'!$AB97+'First tier 2018'!$AC97)/2 -> 1225 | AE97: N/A | AF97: 51% | AG97: 27 | AI97: 79 | AJ97: 12%
A98: 97 | B98: 97 | C98: Rochester Inst. of Technology | D98: NY | E98: East | F98: Suburban | G98: 12410 | H98: More selective | I98: 3 | J98: 65.4% | K98: 46% | L98: 40068 | N98: private | O98: 50 | P98: 3.3 | Q98: 4.2 | R98: 127 | S98: 87% | T98: 68% | U98: 159 | V98: 49% | W98: 5% | X98: 12 | Y98: 80 | Z98: 1140-1330 | AA98: SAT | AB98: 1140 | AC98: 1330 | AD98: =+('First tier 2018'!$AB98+'First tier 2018'!$AC98)/2 -> 1235 | AE98: 39% | AF98: 55% | AG98: 121 | AH98: $57,600 | AI98: 184 | AJ98: 6%
A99: 98 | B99: 97 | C99: Stony Brook--SUNY | D99: NY | E99: East | F99: Suburban | G99: 17026 | H99: More selective | I99: 3 | J99: 53.8% | K99: 7% | L99: 26297 | M99: 9257 | N99: public | O99: 50 | P99: 3.2 | Q99: 3.5 | R99: 110 | S99: 90% | T99: 72% | U99: 150 | V99: 38% | W99: 24% | X99: 17 | Y99: 71 | Z99: 1150-1370 | AA99: SAT | AB99: 1150 | AC99: 1370 | AD99: =+('First tier 2018'!$AB99+'First tier 2018'!$AC99)/2 -> 1260 | AE99: 48% | AF99: 41% | AG99: 72 | AH99: $52,600 | AI99: 110 | AJ99: 10%
A100: 99 | B100: 97 | C100: SUNY Col. of Envir. Sci. and Forestry | D100: NY | E100: East | F100: City | G100: 1755 | H100: More selective | I100: 3 | J100: 53.4% | K100: 18% | L100: 18090 | M100: 8240 | N100: public | O100: 50 | P100: 2.7 | Q100: 3.4 | R100: 104 | S100: 84% | T100: 74% | U100: 89 | V100: 50% | W100: 10% | X100: 13 | Y100: 101 | Z100: 1070-1260 | AA100: SAT | AB100: 1070 | AC100: 1260 | AD100: =+('First tier 2018'!$AB100+'First tier 2018'!$AC100)/2 -> 1165 | AE100: 36% | AF100: 54% | AG100: 81 | AI100: 43 | AJ100: 18%
A101: 100 | B101: 97 | C101: University at Buffalo--SUNY | D101: NY | E101: East | F101: Suburban | G101: 20411 | H101: More selective | I101: 3 | J101: 56.9% | K101: 3% | L101: 26270 | M101: 9770 | N101: public | O101: 50 | P101: 3.1 | Q101: 3.4 | R101: 97 | S101: 88% | T101: 74% | U101: 106 | V101: 31% | W101: 23% | X101: 13 | Y101: 129 | Z101: 1070-1270 | AA101: SAT | AB101: 1070 | AC101: 1270 | AD101: =+('First tier 2018'!$AB101+'First tier 2018'!$AC101)/2 -> 1170 | AE101: 27% | AF101: 59% | AG101: 103 | AH101: $49,100 | AI101: 127 | AJ101: 9%
A102: 101 | B102: 97 | C102: University of Oklahoma | D102: OK | E102: South | F102: City | G102: 22436 | H102: More selective | I102: 3 | J102: 49.7% | K102: 33% | L102: 24443 | M102: 9062 | N102: public | O102: 50 | P102: 3.1 | Q102: 3.6 | R102: 133 | S102: 86% | T102: 67% | U102: 128 | V102: 47% | W102: 11% | X102: 17 | Y102: 96 | Z102: 23-29 | AA102: ACT | AB102: 23 | AC102: 29 | AD102: =+('First tier 2018'!$AB102+'First tier 2018'!$AC102)/2 -> 26 | AE102: 36% | AF102: 71% | AG102: 42 | AH102: $50,300 | AI102: 51 | AJ102: 17%
A103: 102 | B103: 97 | C103: University of Vermont | D103: VT | E103: East | F103: Suburban | G103: 11159 | H103: More selective | I103: 3 | J103: 43.1% | K103: 72% | L103: 41356 | M103: 17740 | N103: public | O103: 50 | P103: 3.0 | Q103: 3.5 | R103: 93 | S103: 86% | T103: 74% | U103: 138 | V103: 48% | W103: 14% | X103: 17 | Y103: 104 | Z103: 1100-1300 | AA103: SAT | AB103: 1100 | AC103: 1300 | AD103: =+('First tier 2018'!$AB103+'First tier 2018'!$AC103)/2 -> 1200 | AE103: 33% | AF103: 69% | AG103: 66 | AH103: $47,700 | AI103: 110 | AJ103: 10%
A104: 103 | B104: 103 | C104: Auburn University | D104: AL | E104: South | F104: Suburban | G104: 22658 | H104: More selective | I104: 3 | J104: 50.7% | K104: 34% | L104: 29640 | M104: 10968 | N104: public | O104: 49 | P104: 3.3 | Q104: 3.8 | R104: 97 | S104: 90% | T104: 75% | U104: 145 | V104: 32% | W104: 16% | X104: 19 | Y104: 101 | Z104: 24-30 | AA104: ACT | AB104: 24 | AC104: 30 | AD104: =+('First tier 2018'!$AB104+'First tier 2018'!$AC104)/2 -> 27 | AE104: 30% | AF104: 81% | AG104: 174 | AH104: $49,500 | AI104: 79 | AJ104: 13%
A105: 104 | B105: 103 | C105: Illinois Institute of Technology | D105: IL | E105: Midwest | F105: Urban | G105: 2944 | H105: More selective | I105: 3 | J105: 70.3% | K105: 22% | L105: 45864 | N105: private | O105: 49 | P105: 2.8 | Q105: 3.6 | R105: 110 | S105: 92% | T105: 71% | U105: 69 | V105: 53% | W105: 9% | X105: 13 | Y105: 60 | Z105: 26-31 | AA105: ACT | AB105: 26 | AC105: 31 | AD105: =+('First tier 2018'!$AB105+'First tier 2018'!$AC105)/2 -> 28.5 | AE105: 60% | AF105: 57% | AG105: 121 | AH105: $60,000 | AI105: 152 | AJ105: 7%
A106: 105 | B106: 103 | C106: Loyola University Chicago | D106: IL | E106: Midwest | F106: City | G106: 11129 | H106: More selective | I106: 3 | J106: 33.8% | K106: 35% | L106: 42828 | N106: private | O106: 49 | P106: 3.0 | Q106: 3.8 | R106: 102 | S106: 85% | T106: 75% | U106: 106 | V106: 42% | W106: 6% | X106: 14 | Y106: 96 | Z106: 24-29 | AA106: ACT | AB106: 24 | AC106: 29 | AD106: =+('First tier 2018'!$AB106+'First tier 2018'!$AC106)/2 -> 26.5 | AE106: 34% | AF106: 73% | AG106: 121 | AH106: $47,100 | AI106: 184 | AJ106: 6%
A107: 106 | B107: 103 | C107: University of New Hampshire | D107: NH | E107: East | F107: Suburban | G107: 12871 | H107: Selective | I107: 2 | J107: 45.5% | K107: 52% | L107: 32637 | N107: public | O107: 49 | P107: 2.9 | Q107: 3.5 | R107: 83 | S107: 86% | T107: 78% | U107: 150 | V107: 42% | W107: 17% | X107: 18 | Y107: 189 | Z107: 990-1200 | AA107: SAT | AB107: 990 | AC107: 1200 | AD107: =+('First tier 2018'!$AB107+'First tier 2018'!$AC107)/2 -> 1095 | AE107: 19% | AF107: 76% | AG107: 136 | AH107: $48,500 | AI107: 173 | AJ107: 7%
A108: 107 | B108: 103 | C108: University of Oregon | D108: OR | E108: West | F108: City | G108: 20049 | H108: Selective | I108: 2 | J108: 46.5% | K108: 42% | L108: 34611 | M108: 11571 | N108: public | O108: 49 | P108: 3.3 | Q108: 3.7 | R108: 110 | S108: 87% | T108: 72% | U108: 106 | V108: 40% | W108: 21% | X108: 17 | Y108: 172 | Z108: 980-1220 | AA108: SAT | AB108: 980 | AC108: 1220 | AD108: =+('First tier 2018'!$AB108+'First tier 2018'!$AC108)/2 -> 1100 | AE108: 25% | AF108: 78% | AG108: 147 | AH108: $45,300 | AI108: 127 | AJ108: 9%
A109: 108 | B109: 103 | C109: Univ. of South Carolina | D109: SC | E109: South | F109: City | G109: 25556 | H109: More selective | I109: 3 | J109: 46.4% | K109: 48% | L109: 32362 | N109: public | O109: 49 | P109: 3.1 | Q109: 3.7 | R109: 97 | S109: 88% | T109: 73% | U109: 159 | V109: 36% | W109: 17% | X109: 18 | Y109: 104 | Z109: 25-30 | AA109: ACT | AB109: 25 | AC109: 30 | AD109: =+('First tier 2018'!$AB109+'First tier 2018'!$AC109)/2 -> 27.5 | AE109: 28% | AF109: 68% | AG109: 179 | AH109: $44,800 | AI109: 61 | AJ109: 15%
A110: 109 | B110: 103 | C110: University of Tennessee | D110: TN | E110: South | F110: Urban | G110: 22139 | H110: More selective | I110: 3 | J110: 50.7% | K110: 11% | L110: 31160 | M110: 12970 | N110: public | O110: 49 | P110: 3.2 | Q110: 3.6 | R110: 120 | S110: 86% | T110: 69% | U110: 124 | V110: 30% | W110: 13% | X110: 17 | Y110: 84 | Z110: 24-30 | AA110: ACT | AB110: 24 | AC110: 30 | AD110: =+('First tier 2018'!$AB110+'First tier 2018'!$AC110)/2 -> 27 | AE110: 54% | AF110: 77% | AG110: 84 | AH110: $47,000 | AI110: 102 | AJ110: 10%
A111: 110 | B111: 110 | C111: Howard University | D111: DC | E111: South | F111: Urban | G111: 5899 | H111: Selective | I111: 2 | J111: 32.9% | K111: 95% | L111: 25697 | N111: private | O111: 48 | P111: 3.0 | Q111: 3.9 | R111: 157 | S111: 86% | T111: 61% | U111: 124 | V111: 55% | W111: 5% | X111: 7 | Y111: 178 | Z111: 1040-1240 | AA111: SAT | AB111: 1040 | AC111: 1240 | AD111: =+('First tier 2018'!$AB111+'First tier 2018'!$AC111)/2 -> 1140 | AE111: 28% | AF111: 30% | AG111: 49 | AH111: $51,200 | AI111: 110 | AJ111: 10%
A112: 111 | B112: 110 | C112: University of Alabama | D112: AL | E112: South | F112: Suburban | G112: 32563 | H112: More selective | I112: 3 | J112: 44.5% | K112: 57% | L112: 28100 | M112: 10780 | N112: public | O112: 48 | P112: 3.2 | Q112: 3.7 | R112: 127 | S112: 87% | T112: 69% | U112: 178 | V112: 36% | W112: 22% | X112: 23 | Y112: 89 | Z112: 23-31 | AA112: ACT | AB112: 23 | AC112: 31 | AD112: =+('First tier 2018'!$AB112+'First tier 2018'!$AC112)/2 -> 27 | AE112: 37% | AF112: 53% | AG112: 211 | AH112: $46,200 | AI112: 16 | AJ112: 30%
A113: 112 | B113: 110 | C113: University of San Francisco | D113: CA | E113: West | F113: Urban | G113: 6745 | H113: More selective | I113: 3 | J113: 38.1% | K113: 23% | L113: 46250 | N113: private | O113: 48 | P113: 2.9 | Q113: 3.7 | R113: 110 | S113: 86% | T113: 72% | U113: 106 | V113: 52% | W113: 1% | X113: 14 | Y113: 148 | Z113: 1030-1250 | AA113: SAT | AB113: 1030 | AC113: 1250 | AD113: =+('First tier 2018'!$AB113+'First tier 2018'!$AC113)/2 -> 1140 | AE113: 25% | AF113: 71% | AG113: 121 | AH113: $54,200 | AI113: 173 | AJ113: 6%
A114: 113 | B114: 110 | C114: University of the Pacific | D114: CA | E114: West | F114: City | G114: 3483 | H114: More selective | I114: 3 | J114: 46.6% | K114: 7% | L114: 46346 | N114: private | O114: 48 | P114: 2.6 | Q114: 3.5 | R114: 133 | S114: 85% | T114: 68% | U114: 50 | V114: 58% | W114: 4% | X114: 12 | Y114: 120 | Z114: 1030-1300 | AA114: SAT | AB114: 1030 | AC114: 1300 | AD114: =+('First tier 2018'!$AB114+'First tier 2018'!$AC114)/2 -> 1165 | AE114: 37% | AF114: 66% | AG114: 55 | AH114: $53,400 | AI114: 162 | AJ114: 7%
A115: 114 | B115: 110 | C115: University of Utah | D115: UT | E115: West | F115: Urban | G115: 23789 | H115: More selective | I115: 3 | J115: 54.6% | K115: 20% | L115: 26408 | M115: 9166 | N115: public | O115: 48 | P115: 3.1 | Q115: 3.4 | R115: 142 | S115: 89% | T115: 65% | U115: 145 | V115: 40% | W115: 18% | X115: 16 | Y115: 133 | Z115: 21-27 | AA115: ACT | AB115: 21 | AC115: 27 | AD115: =+('First tier 2018'!$AB115+'First tier 2018'!$AC115)/2 -> 24 | AE115: 35% | AF115: 76% | AG115: 22 | AH115: $49,700 | AI115: 102 | AJ115: 10%
A116: 115 | B116: 115 | C116: Arizona State University--Tempe | D116: AZ | E116: West | F116: Urban | G116: 42477 | H116: More selective | I116: 3 | J116: 57.1% | K116: 26% | L116: 27372 | M116: 10792 | N116: public | O116: 47 | P116: 3.4 | Q116: 3.6 | R116: 146 | S116: 86% | T116: 67% | U116: 106 | V116: 41% | W116: 18% | X116: 23 | Y116: 140 | Z116: 22-28 | AA116: ACT | AB116: 22 | AC116: 28 | AD116: =+('First tier 2018'!$AB116+'First tier 2018'!$AC116)/2 -> 25 | AE116: 30% | AF116: 83% | AG116: 197 | AH116: $50,200 | AI116: 86 | AJ116: 11%
A117: 116 | B117: 115 | C117: Iowa State University | D117: IA | E117: Midwest | F117: City | G117: 30671 | H117: More selective | I117: 3 | J117: 57.4% | K117: 31% | L117: 22256 | N117: public | O117: 47 | P117: 3.3 | Q117: 3.5 | R117: 104 | S117: 87% | T117: 74% | U117: 194 | V117: 29% | W117: 25% | X117: 19 | Y117: 140 | Z117: 22-28 | AA117: ACT | AB117: 22 | AC117: 28 | AD117: =+('First tier 2018'!$AB117+'First tier 2018'!$AC117)/2 -> 25 | AE117: 22% | AF117: 87% | AG117: 147 | AH117: $51,400 | AI117: 79 | AJ117: 12%
A118: 117 | B118: 115 | C118: Temple University | D118: PA | E118: East | F118: Urban | G118: 29275 | H118: More selective | I118: 3 | J118: 48.1% | K118: 20% | L118: 27266 | M118: 16274 | N118: public | O118: 47 | P118: 3.0 | Q118: 3.7 | R118: 110 | S118: 90% | T118: 70% | U118: 184 | V118: 38% | W118: 9% | X118: 15 | Y118: 129 | Z118: 1050-1280 | AA118: SAT | AB118: 1050 | AC118: 1280 | AD118: =+('First tier 2018'!$AB118+'First tier 2018'!$AC118)/2 -> 1165 | AE118: 24% | AF118: 52% | AG118: 136 | AH118: $46,700 | AI118: 184 | AJ118: 6%
A119: 118 | B119: 115 | C119: University of Kansas | D119: KS | E119: Midwest | F119: City | G119: 19262 | H119: More selective | I119: 3 | J119: 49.3% | K119: 27% | L119: 26592 | M119: 10824 | N119: public | O119: 47 | P119: 3.3 | Q119: 3.6 | R119: 164 | S119: 80% | T119: 63% | U119: 69 | V119: 52% | W119: 11% | X119: 17 | Y119: 116 | Z119: 23-29 | AA119: ACT | AB119: 23 | AC119: 29 | AD119: =+('First tier 2018'!$AB119+'First tier 2018'!$AC119)/2 -> 26 | AE119: 26% | AF119: 93% | AG119: 87 | AH119: $46,800 | AI119: 67 | AJ119: 13%
A120: 119 | B120: 115 | C120: University of St. Thomas | D120: MN | E120: Midwest | F120: Urban | G120: 6111 | H120: More selective | I120: 3 | J120: 54.3% | K120: 19% | L120: 41133 | N120: private | O120: 47 | P120: 2.5 | Q120: 3.4 | R120: 93 | S120: 88% | T120: 76% | U120: 106 | V120: 41% | W120: 2% | X120: 14 | Y120: 101 | Z120: 24-29 | AA120: ACT | AB120: 24 | AC120: 29 | AD120: =+('First tier 2018'!$AB120+'First tier 2018'!$AC120)/2 -> 26.5 | AE120: 25% | AF120: 83% | AG120: 158 | AH120: $50,000 | AI120: 61 | AJ120: 15%
A121: 120 | B121: 120 | C121: Catholic University of America | D121: DC | E121: South | F121: Urban | G121: 3241 | H121: Selective | I121: 2 | J121: 45.4% | K121: 96% | L121: 44060 | N121: private | O121: 46 | P121: 2.8 | Q121: 3.6 | R121: 127 | S121: 84% | T121: 70% | U121: 83 | V121: 63% | W121: 3% | X121: 7 | Y121: 165 | Z121: 1040-1250 | AA121: SAT | AB121: 1040 | AC121: 1250 | AD121: =+('First tier 2018'!$AB121+'First tier 2018'!$AC121)/2 -> 1145 | AE121: N/A | AF121: 80% | AG121: 84 | AH121: $50,500 | AI121: 127 | AJ121: 9%
A122: 121 | B122: 120 | C122: DePaul University | D122: IL | E122: Midwest | F122: Urban | G122: 15407 | H122: More selective | I122: 3 | J122: 47.4% | K122: 23% | L122: 39010 | N122: private | O122: 46 | P122: 2.9 | Q122: 3.7 | R122: 104 | S122: 85% | T122: 73% | U122: 138 | V122: 41% | W122: 1% | X122: 15 | Y122: 136 | Z122: 22-28 | AA122: ACT | AB122: 22 | AC122: 28 | AD122: =+('First tier 2018'!$AB122+'First tier 2018'!$AC122)/2 -> 25 | AE122: 23% | AF122: 70% | AG122: 197 | AH122: $49,400 | AI122: 173 | AJ122: 6%
A123: 122 | B123: 120 | C123: Duquesne University | D123: PA | E123: East | F123: Urban | G123: 6039 | H123: More selective | I123: 3 | J123: 37.2% | K123: 29% | L123: 36394 | N123: private | O123: 46 | P123: 2.7 | Q123: 3.6 | R123: 93 | S123: 88% | T123: 77% | U123: 166 | V123: 42% | W123: 8% | X123: 14 | Y123: 140 | Z123: 1055-1230 | AA123: SAT | AB123: 1055 | AC123: 1230 | AD123: =+('First tier 2018'!$AB123+'First tier 2018'!$AC123)/2 -> 1142.5 | AE123: 25% | AF123: 74% | AG123: 163 | AH123: $46,700 | AI123: 162 | AJ123: 7%
A124: 123 | B124: 120 | C124: Univ. of Missouri | D124: MO | E124: Midwest | F124: City | G124: 25898 | H124: More selective | I124: 3 | J124: 48.0% | K124: 23% | L124: 26506 | N124: public | O124: 46 | P124: 3.2 | Q124: 3.6 | R124: 125 | S124: 86% | T124: 68% | U124: 159 | V124: 40% | W124: 18% | X124: 19 | Y124: 104 | Z124: 23-29 | AA124: ACT | AB124: 23 | AC124: 29 | AD124: =+('First tier 2018'!$AB124+'First tier 2018'!$AC124)/2 -> 26 | AE124: 30% | AF124: 75% | AG124: 163 | AH124: $46,200 | AI124: 63 | AJ124: 14%
A125: 124 | B125: 124 | C125: Clarkson University | D125: NY | E125: East | F125: Rural | G125: 3268 | H125: More selective | I125: 3 | J125: 70.5% | K125: 27% | L125: 47950 | N125: private | O125: 45 | P125: 2.6 | Q125: 3.3 | R125: 97 | S125: 90% | T125: 72% | U125: 206 | V125: 41% | W125: 24% | X125: 14 | Y125: 110 | Z125: 1080-1283 | AA125: SAT | AB125: 1080 | AC125: 1283 | AD125: =+('First tier 2018'!$AB125+'First tier 2018'!$AC125)/2 -> 1181.5 | AE125: 38% | AF125: 68% | AG125: 136 | AH125: $62,800 | AI125: 56 | AJ125: 15%
A126: 125 | B126: 124 | C126: Colorado State University | D126: CO | E126: West | F126: City | G126: 25177 | H126: More selective | I126: 3 | J126: 49.1% | K126: 23% | L126: 29140 | M126: 11632 | N126: public | O126: 45 | P126: 3.0 | Q126: 3.5 | R126: 133 | S126: 87% | T126: 67% | U126: 128 | V126: 35% | W126: 19% | X126: 18 | Y126: 148 | Z126: 22-28 | AA126: ACT | AB126: 22 | AC126: 28 | AD126: =+('First tier 2018'!$AB126+'First tier 2018'!$AC126)/2 -> 25 | AE126: 21% | AF126: 78% | AG126: 158 | AH126: $49,200 | AI126: 102 | AJ126: 11%
A127: 126 | B127: 124 | C127: Michigan Technological University | D127: MI | E127: Midwest | F127: Rural | G127: 5829 | H127: More selective | I127: 3 | J127: 73.3% | K127: 23% | L127: 32318 | M127: 15074 | N127: public | O127: 45 | P127: 2.7 | Q127: 3.8 | R127: 142 | S127: 84% | T127: 67% | U127: 106 | V127: 46% | W127: 16% | X127: 12 | Y127: 92 | Z127: 25-30 | AA127: ACT | AB127: 25 | AC127: 30 | AD127: =+('First tier 2018'!$AB127+'First tier 2018'!$AC127)/2 -> 27.5 | AE127: 29% | AF127: 76% | AG127: 147 | AH127: $62,200 | AI127: 110 | AJ127: 10%
A128: 127 | B128: 124 | C128: Seton Hall University | D128: NJ | E128: East | F128: Suburban | G128: 5956 | H128: More selective | I128: 3 | J128: 45.0% | L128: 40588 | N128: private | O128: 45 | P128: 2.8 | Q128: 3.7 | R128: 146 | S128: 85% | T128: 64% | U128: 89 | V128: 49% | W128: 2% | X128: 13 | Y128: 140 | Z128: 1070-1250 | AA128: SAT | AB128: 1070 | AC128: 1250 | AD128: =+('First tier 2018'!$AB128+'First tier 2018'!$AC128)/2 -> 1160 | AE128: 34% | AF128: 67% | AG128: 136 | AH128: $52,600 | AI128: 127 | AJ128: 9%
A129: 128 | B129: 124 | C129: University of Arizona | D129: AZ | E129: West | F129: City | G129: 34072 | H129: Selective | I129: 2 | J129: 48.2% | K129: 32% | L129: 32449 | M129: 11644 | N129: public | O129: 45 | P129: 3.6 | Q129: 3.7 | R129: 170 | S129: 81% | T129: 60% | U129: 145 | V129: 39% | W129: 16% | X129: 22 | Y129: 160 | Z129: 21-27 | AA129: ACT | AB129: 21 | AC129: 27 | AD129: =+('First tier 2018'!$AB129+'First tier 2018'!$AC129)/2 -> 24 | AE129: 28% | AF129: 79% | AG129: 87 | AH129: $51,500 | AI129: 162 | AJ129: 7%
A130: 129 | B130: 124 | C130: Univ. of California--Riverside | D130: CA | E130: West | F130: City | G130: 19799 | H130: More selective | I130: 3 | J130: 46.3% | K130: 1% | L130: 41931 | M130: 13917 | N130: public | O130: 45 | P130: 3.0 | Q130: 3.5 | R130: 102 | S130: 90% | T130: 73% | U130: 166 | V130: 20% | W130: 31% | X130: 22 | Y130: 124 | Z130: 940-1190 | AA130: SAT | AB130: 940 | AC130: 1190 | AD130: =+('First tier 2018'!$AB130+'First tier 2018'!$AC130)/2 -> 1065 | AE130: 94% | AF130: 66% | AG130: 103 | AH130: $48,300 | AI130: 258 | AJ130: 3%
A131: 130 | B131: 124 | C131: University of Dayton | D131: OH | E131: Midwest | F131: Suburban | G131: 8330 | H131: Selective | I131: 2 | J131: 52.9% | K131: 51% | L131: 41750 | N131: private | O131: 45 | P131: 2.6 | Q131: 3.4 | R131: 83 | S131: 90% | T131: 75% | U131: 159 | V131: 40% | W131: 4% | X131: 15 | Y131: 172 | Z131: 24-29 | AA131: ACT | AB131: 24 | AC131: 29 | AD131: =+('First tier 2018'!$AB131+'First tier 2018'!$AC131)/2 -> 26.5 | AE131: 27% | AF131: 60% | AG131: 121 | AH131: $52,100 | AI131: 67 | AJ131: 13%
A132: 131 | B132: 124 | C132: Univ. of Nebraska--Lincoln | D132: NE | E132: Midwest | F132: City | G132: 20833 | H132: More selective | I132: 3 | J132: 52.2% | K132: 23% | L132: 23256 | M132: 8690 | N132: public | O132: 45 | P132: 3.2 | Q132: 3.4 | R132: 138 | S132: 83% | T132: 67% | U132: 150 | V132: 37% | W132: 18% | X132: 21 | Y132: 133 | Z132: 22-28 | AA132: ACT | AB132: 22 | AC132: 28 | AD132: =+('First tier 2018'!$AB132+'First tier 2018'!$AC132)/2 -> 25 | AE132: 24% | AF132: 75% | AG132: 136 | AH132: $47,300 | AI132: 43 | AJ132: 18%
A133: 132 | B133: 132 | C133: Hofstra University | D133: NY | E133: East | F133: Suburban | G133: 6899 | H133: More selective | I133: 3 | J133: 45.6% | K133: 37% | L133: 43960 | N133: private | O133: 44 | P133: 2.8 | Q133: 3.6 | R133: 164 | S133: 80% | T133: 64% | U133: 67 | V133: 49% | W133: 3% | X133: 14 | Y133: 124 | Z133: 1070-1260 | AA133: SAT | AB133: 1070 | AC133: 1260 | AD133: =+('First tier 2018'!$AB133+'First tier 2018'!$AC133)/2 -> 1165 | AE133: 27% | AF133: 62% | AG133: 111 | AH133: $51,000 | AI133: 92 | AJ133: 11%
A134: 133 | B134: 133 | C134: Louisiana State Univ.--Baton Rouge | D134: LA | E134: South | F134: Urban | G134: 26118 | H134: More selective | I134: 3 | J134: 47.9% | K134: 17% | L134: 28051 | M134: 11374 | N134: public | O134: 43 | P134: 2.9 | Q134: 3.6 | R134: 138 | S134: 84% | T134: 68% | U134: 194 | V134: 36% | W134: 22% | X134: 22 | Y134: 116 | Z134: 23-28 | AA134: ACT | AB134: 23 | AC134: 28 | AD134: =+('First tier 2018'!$AB134+'First tier 2018'!$AC134)/2 -> 25.5 | AE134: 25% | AF134: 76% | AG134: 136 | AH134: $49,800 | AI134: 102 | AJ134: 11%
A135: 134 | B135: 133 | C135: Mercer University | D135: GA | E135: South | F135: City | G135: 4706 | H135: More selective | I135: 3 | J135: 38.6% | K135: 19% | L135: 36000 | N135: private | O135: 43 | P135: 2.4 | Q135: 3.7 | R135: 156 | S135: 84% | T135: 66% | U135: 62 | V135: 64% | W135: 4% | X135: 13 | Y135: 92 | Z135: 25-29 | AA135: ACT | AB135: 25 | AC135: 29 | AD135: =+('First tier 2018'!$AB135+'First tier 2018'!$AC135)/2 -> 27 | AE135: 39% | AF135: 69% | AG135: 163 | AH135: $47,400 | AI135: 110 | AJ135: 10%
A136: 135 | B136: 133 | C136: The New School | D136: NY | E136: East | F136: Urban | G136: 7014 | H136: Selective | I136: 2 | J136: 25.9% | K136: 74% | L136: 47330 | N136: private | O136: 43 | P136: 2.8 | Q136: 3.6 | R136: 146 | S136: 82% | T136: 68% | U136: 94 | V136: 91% | W136: 1% | X136: 9 | Y136: 204 | Z136: 1030-1280 | AA136: SAT | AB136: 1030 | AC136: 1280 | AD136: =+('First tier 2018'!$AB136+'First tier 2018'!$AC136)/2 -> 1155 | AE136: 18% | AF136: 60% | AG136: 97 | AI136: 275 | AJ136: 2%
A137: 136 | B137: 133 | C137: Rutgers University--Newark | D137: NJ | E137: East | F137: Urban | G137: 8170 | H137: Selective | I137: 2 | J137: 46.4% | K137: 2% | L137: 29480 | M137: 13829 | N137: public | O137: 43 | P137: 2.8 | Q137: 3.9 | R137: 133 | S137: 85% | T137: 66% | U137: 106 | V137: 31% | W137: 15% | X137: 10 | Y137: 266 | Z137: 910-1100 | AA137: SAT | AB137: 910 | AC137: 1100 | AD137: =+('First tier 2018'!$AB137+'First tier 2018'!$AC137)/2 -> 1005 | AE137: 20% | AF137: 65% | AG137: 121 | AH137: $54,400 | AI137: 214 | AJ137: 5%
A138: 137 | B138: 133 | C138: University of Arkansas | D138: AR | E138: South | F138: City | G138: 22548 | H138: More selective | I138: 3 | J138: 47.4% | K138: 44% | L138: 24308 | M138: 9062 | N138: public | O138: 43 | P138: 2.9 | Q138: 3.4 | R138: 157 | S138: 82% | T138: 64% | U138: 120 | V138: 48% | W138: 18% | X138: 19 | Y138: 120 | Z138: 23-29 | AA138: ACT | AB138: 23 | AC138: 29 | AD138: =+('First tier 2018'!$AB138+'First tier 2018'!$AC138)/2 -> 26 | AE138: 25% | AF138: 63% | AG138: 163 | AH138: $47,600 | AI138: 29 | AJ138: 22%
A139: 138 | B139: 133 | C139: University of Cincinnati | D139: OH | E139: Midwest | F139: Urban | G139: 25860 | H139: More selective | I139: 3 | J139: 50.3% | K139: 15% | L139: 26334 | M139: 11000 | N139: public | O139: 43 | P139: 2.8 | Q139: 3.2 | R139: 138 | S139: 87% | T139: 67% | U139: 184 | V139: 39% | W139: 16% | X139: 17 | Y139: 124 | Z139: 23-28 | AA139: ACT | AB139: 23 | AC139: 28 | AD139: =+('First tier 2018'!$AB139+'First tier 2018'!$AC139)/2 -> 25.5 | AE139: 19% | AF139: 76% | AG139: 136 | AH139: $49,800 | AI139: 86 | AJ139: 12%
A140: 139 | B140: 133 | C140: University of Kentucky | D140: KY | E140: South | F140: City | G140: 22621 | H140: More selective | I140: 3 | J140: 45.7% | K140: 31% | L140: 28046 | M140: 11922 | N140: public | O140: 43 | P140: 3.1 | Q140: 3.6 | R140: 164 | S140: 83% | T140: 64% | U140: 206 | V140: 31% | W140: 16% | X140: 17 | Y140: 120 | Z140: 22-28 | AA140: ACT | AB140: 22 | AC140: 28 | AD140: =+('First tier 2018'!$AB140+'First tier 2018'!$AC140)/2 -> 25 | AE140: 30% | AF140: 91% | AG140: 72 | AH140: $46,500 | AI140: 67 | AJ140: 14%
A141: 140 | B141: 140 | C141: George Mason University | D141: VA | E141: South | F141: Suburban | G141: 23812 | H141: Selective | I141: 2 | J141: 49.1% | K141: 10% | L141: 34370 | M141: 11924 | N141: public | O141: 42 | P141: 3.1 | Q141: 3.8 | R141: 120 | S141: 88% | T141: 70% | U141: 242 | V141: 30% | W141: 14% | X141: 16 | Y141: 165 | Z141: 1060-1250 | AA141: SAT | AB141: 1060 | AC141: 1250 | AD141: =+('First tier 2018'!$AB141+'First tier 2018'!$AC141)/2 -> 1155 | AE141: 21% | AF141: 81% | AG141: 202 | AH141: $53,300 | AI141: 258 | AJ141: 3%
A142: 141 | B142: 140 | C142: New Jersey Inst. of Technology | D142: NJ | E142: East | F142: Urban | G142: 8211 | H142: More selective | I142: 3 | J142: 78.5% | K142: 3% | L142: 31034 | M142: 16430 | N142: public | O142: 42 | P142: 2.6 | Q142: 3.5 | R142: 157 | S142: 87% | T142: 61% | U142: 69 | V142: 37% | W142: 5% | X142: 17 | Y142: 160 | Z142: 1110-1310 | AA142: SAT | AB142: 1110 | AC142: 1310 | AD142: =+('First tier 2018'!$AB142+'First tier 2018'!$AC142)/2 -> 1210 | AE142: 31% | AF142: 59% | AG142: 114 | AH142: $58,900 | AI142: 140 | AJ142: 8%
A143: 142 | B143: 140 | C143: San Diego State University | D143: CA | E143: West | F143: Urban | G143: 29853 | H143: More selective | I143: 3 | J143: 45.7% | K143: 9% | L143: 19340 | M143: 7460 | N143: public | O143: 42 | P143: 2.9 | Q143: 3.6 | R143: 120 | S143: 89% | T143: 74% | U143: 293 | V143: 27% | W143: 25% | X143: 27 | Y143: 133 | Z143: 1000-1220 | AA143: SAT | AB143: 1000 | AC143: 1220 | AD143: =+('First tier 2018'!$AB143+'First tier 2018'!$AC143)/2 -> 1110 | AE143: 31% | AF143: 35% | AG143: 250 | AH143: $50,000 | AI143: 198 | AJ143: 5%
A144: 143 | B144: 140 | C144: University of South Florida | D144: FL | E144: South | F144: Urban | G144: 31461 | H144: More selective | I144: 3 | J144: 45.9% | K144: 6% | L144: 17324 | M144: 6410 | N144: public | O144: 42 | P144: 2.7 | Q144: 3.4 | R144: 127 | S144: 89% | T144: 67% | U144: 251 | V144: 31% | W144: 14% | X144: 22 | Y144: 80 | Z144: 1070-1250 | AA144: SAT | AB144: 1070 | AC144: 1250 | AD144: =+('First tier 2018'!$AB144+'First tier 2018'!$AC144)/2 -> 1160 | AE144: 35% | AF144: 47% | AG144: 179 | AH144: $44,900 | AI144: 110 | AJ144: 10%
A145: 144 | B145: 140 | C145: Washington State University | D145: WA | E145: West | F145: Rural | G145: 24904 | H145: Selective | I145: 2 | J145: 47.9% | K145: 11% | L145: 25817 | M145: 11391 | N145: public | O145: 42 | P145: 3.0 | Q145: 3.6 | R145: 152 | S145: 79% | T145: 67% | U145: 194 | V145: 34% | W145: 20% | X145: 15 | Y145: 189 | Z145: 930-1165 | AA145: SAT | AB145: 930 | AC145: 1165 | AD145: =+('First tier 2018'!$AB145+'First tier 2018'!$AC145)/2 -> 1047.5 | AE145: 36% | AF145: 72% | AG145: 129 | AH145: $50,900 | AI145: 67 | AJ145: 13%
A146: 145 | B146: 145 | C146: Kansas State University | D146: KS | E146: Midwest | F146: City | G146: 19472 | H146: Selective | I146: 2 | J146: 52.4% | K146: 18% | L146: 24775 | M146: 9874 | N146: public | O146: 41 | P146: 3.0 | Q146: 3.4 | R146: 157 | S146: 83% | T146: 63% | U146: 210 | V146: 41% | W146: 14% | X146: 18 | Y146: 160 | Z146: 22-28 | AA146: ACT | AB146: 22 | AC146: 28 | AD146: =+('First tier 2018'!$AB146+'First tier 2018'!$AC146)/2 -> 25 | AE146: 24% | AF146: 94% | AG146: 129 | AH146: $48,600 | AI146: 29 | AJ146: 22%
A147: 146 | B147: 145 | C147: Oregon State University | D147: OR | E147: West | F147: Suburban | G147: 25327 | H147: Selective | I147: 2 | J147: 53.7% | K147: 30% | L147: 29457 | M147: 10797 | N147: public | O147: 41 | P147: 3.0 | Q147: 3.5 | R147: 152 | S147: 84% | T147: 63% | U147: 219 | V147: 29% | W147: 21% | X147: 18 | Y147: 165 | Z147: 990-1240 | AA147: SAT | AB147: 990 | AC147: 1240 | AD147: =+('First tier 2018'!$AB147+'First tier 2018'!$AC147)/2 -> 1115 | AE147: 28% | AF147: 77% | AG147: 129 | AH147: $50,600 | AI147: 110 | AJ147: 10%
A148: 147 | B148: 145 | C148: St. John Fisher College | D148: NY | E148: East | F148: Suburban | G148: 2786 | H148: Selective | I148: 2 | J148: 40.0% | K148: 3% | L148: 33120 | N148: private | O148: 41 | P148: 2.3 | Q148: 3.3 | R148: 104 | S148: 86% | T148: 73% | U148: 128 | V148: 45% | W148: 1% | X148: 11 | Y148: 189 | Z148: 970-1150 | AA148: SAT | AB148: 970 | AC148: 1150 | AD148: =+('First tier 2018'!$AB148+'First tier 2018'!$AC148)/2 -> 1060 | AE148: 25% | AF148: 65% | AG148: 202 | AH148: $42,500 | AI148: 127 | AJ148: 9%
A149: 148 | B149: 145 | C149: University of Illinois--Chicago | D149: IL | E149: Midwest | F149: Urban | G149: 17959 | H149: More selective | I149: 3 | J149: 49.5% | K149: 3% | L149: 27672 | M149: 14816 | N149: public | O149: 41 | P149: 3.0 | Q149: 3.5 | R149: 179 | S149: 80% | T149: 58% | U149: 184 | V149: 38% | W149: 20% | X149: 18 | Y149: 148 | Z149: 21-27 | AA149: ACT | AB149: 21 | AC149: 27 | AD149: =+('First tier 2018'!$AB149+'First tier 2018'!$AC149)/2 -> 24 | AE149: 27% | AF149: 74% | AG149: 37 | AH149: $51,700 | AI149: 258 | AJ149: 3%
A150: 149 | B150: 145 | C150: University of Mississippi | D150: MS | E150: South | F150: Rural | G150: 19213 | H150: More selective | I150: 3 | J150: 43.7% | K150: 44% | L150: 23554 | M150: 8290 | N150: public | O150: 41 | P150: 2.9 | Q150: 3.5 | R150: 157 | S150: 86% | T150: 60% | U150: 184 | V150: 41% | W150: 17% | X150: 18 | Y150: 140 | Z150: 22-29 | AA150: ACT | AB150: 22 | AC150: 29 | AD150: =+('First tier 2018'!$AB150+'First tier 2018'!$AC150)/2 -> 25.5 | AE150: 25% | AF150: 78% | AG150: 121 | AH150: $44,500 | AI150: 56 | AJ150: 16%
A151: 150 | B151: 145 | C151: University of Texas--Dallas | D151: TX | E151: South | F151: Suburban | G151: 17350 | H151: More selective | I151: 3 | J151: 57.1% | K151: 4% | L151: 33654 | M151: 12162 | N151: public | O151: 41 | P151: 2.8 | Q151: 3.7 | R151: 127 | S151: 87% | T151: 68% | U151: 210 | V151: 24% | W151: 24% | X151: 23 | Y151: 87 | Z151: 1140-1380 | AA151: SAT | AB151: 1140 | AC151: 1380 | AD151: =+('First tier 2018'!$AB151+'First tier 2018'!$AC151)/2 -> 1260 | AE151: 32% | AF151: 68% | AG151: 217 | AH151: $51,400 | AI151: 258 | AJ151: 3%
A152: 151 | B152: 151 | C152: Adelphi University | D152: NY | E152: East | F152: Suburban | G152: 5205 | H152: Selective | I152: 2 | J152: 31.2% | K152: 7% | L152: 37170 | N152: private | O152: 40 | P152: 2.3 | Q152: 3.1 | R152: 142 | S152: 83% | T152: 68% | U152: 62 | V152: 46% | W152: 3% | X152: 12 | Y152: 236 | Z152: 1010-1210 | AA152: SAT | AB152: 1010 | AC152: 1210 | AD152: =+('First tier 2018'!$AB152+'First tier 2018'!$AC152)/2 -> 1110 | AE152: 31% | AF152: 70% | AG152: 147 | AH152: $50,400 | AI152: 102 | AJ152: 10%
A153: 152 | B153: 151 | C153: Florida Institute of Technology | D153: FL | E153: South | F153: City | G153: 3629 | H153: More selective | I153: 3 | J153: 70.3% | K153: 49% | L153: 41240 | N153: private | O153: 40 | P153: 2.4 | Q153: 3.5 | R153: 186 | S153: 80% | T153: 58% | U153: 106 | V153: 45% | W153: 5% | X153: 13 | Y153: 120 | Z153: 1060-1260 | AA153: SAT | AB153: 1060 | AC153: 1260 | AD153: =+('First tier 2018'!$AB153+'First tier 2018'!$AC153)/2 -> 1160 | AE153: 33% | AF153: 61% | AG153: 163 | AH153: $56,700 | AI153: 198 | AJ153: 5%
A154: 153 | B154: 151 | C154: Ohio University | D154: OH | E154: Midwest | F154: Rural | G154: 23788 | H154: Selective | I154: 2 | J154: 39.9% | K154: 15% | L154: 21360 | M154: 11896 | N154: public | O154: 40 | P154: 3.0 | Q154: 3.5 | R154: 146 | S154: 80% | T154: 64% | U154: 251 | V154: 30% | W154: 18% | X154: 18 | Y154: 165 | Z154: 21-26 | AA154: ACT | AB154: 21 | AC154: 26 | AD154: =+('First tier 2018'!$AB154+'First tier 2018'!$AC154)/2 -> 23.5 | AE154: 15% | AF154: 75% | AG154: 190 | AH154: $46,900 | AI154: 198 | AJ154: 5%
A155: 154 | B155: 151 | C155: Seattle Pacific University | D155: WA | E155: West | F155: Urban | G155: 3095 | H155: Selective | I155: 2 | J155: 32.5% | K155: 36% | L155: 40893 | N155: private | O155: 40 | P155: 2.4 | Q155: 3.5 | R155: 110 | S155: 85% | T155: 71% | U155: 194 | V155: 56% | W155: 3% | X155: 14 | Y155: 230 | Z155: 990-1230 | AA155: SAT | AB155: 990 | AC155: 1230 | AD155: =+('First tier 2018'!$AB155+'First tier 2018'!$AC155)/2 -> 1110 | AE155: 1% | AF155: 87% | AG155: 179 | AH155: $45,400 | AI155: 184 | AJ155: 6%
A156: 155 | B156: 151 | C156: University at Albany--SUNY | D156: NY | E156: East | F156: Suburban | G156: 13139 | H156: Selective | I156: 2 | J156: 50.7% | K156: 5% | L156: 24358 | M156: 9278 | N156: public | O156: 40 | P156: 2.9 | Q156: 3.3 | R156: 138 | S156: 83% | T156: 66% | U156: 194 | V156: 36% | W156: 16% | X156: 18 | Y156: 221 | Z156: 1010-1170 | AA156: SAT | AB156: 1010 | AC156: 1170 | AD156: =+('First tier 2018'!$AB156+'First tier 2018'!$AC156)/2 -> 1090 | AE156: 16% | AF156: 54% | AG156: 147 | AH156: $47,300 | AI156: 152 | AJ156: 7%
A157: 156 | B157: 156 | C157: Oklahoma State University | D157: OK | E157: South | F157: City | G157: 21093 | H157: More selective | I157: 3 | J157: 50.9% | K157: 27% | L157: 23776 | M157: 8738 | N157: public | O157: 39 | P157: 2.8 | Q157: 3.5 | R157: 164 | S157: 81% | T157: 63% | U157: 150 | V157: 32% | W157: 16% | X157: 20 | Y157: 148 | Z157: 21-27 | AA157: ACT | AB157: 21 | AC157: 27 | AD157: =+('First tier 2018'!$AB157+'First tier 2018'!$AC157)/2 -> 24 | AE157: 25% | AF157: 75% | AG157: 179 | AH157: $47,700 | AI157: 92 | AJ157: 11%
A158: 157 | B158: 156 | C158: Univ. of Massachusetts--Lowell | D158: MA | E158: East | F158: City | G158: 13639 | H158: More selective | I158: 3 | J158: 61.9% | K158: 10% | L158: 31865 | M158: 14800 | N158: public | O158: 39 | P158: 2.5 | Q158: 3.3 | R158: 182 | S158: 85% | T158: 56% | U158: 74 | V158: 53% | W158: 5% | X158: 17 | Y158: 136 | Z158: 1070-1260 | AA158: SAT | AB158: 1070 | AC158: 1260 | AD158: =+('First tier 2018'!$AB158+'First tier 2018'!$AC158)/2 -> 1165 | AE158: 25% | AF158: 60% | AG158: 163 | AH158: $53,900 | AI158: 86 | AJ158: 12%
A159: 158 | B159: 156 | C159: University of Rhode Island | D159: RI | E159: East | F159: Rural | G159: 14801 | H159: Selective | I159: 2 | J159: 43.8% | K159: 46% | L159: 28874 | M159: 12884 | N159: public | O159: 39 | P159: 2.8 | Q159: 3.5 | R159: 157 | S159: 83% | T159: 63% | U159: 128 | V159: 42% | W159: 10% | X159: 17 | Y159: 250 | Z159: 990-1190 | AA159: SAT | AB159: 990 | AC159: 1190 | AD159: =+('First tier 2018'!$AB159+'First tier 2018'!$AC159)/2 -> 1090 | AE159: 18% | AF159: 71% | AG159: 190 | AH159: $50,000 | AI159: 184 | AJ159: 6%
A160: 159 | B160: 159 | C160: Biola University | D160: CA | E160: West | F160: Suburban | G160: 4091 | H160: Selective | I160: 2 | J160: 36.3% | K160: 26% | L160: 38448 | N160: private | O160: 38 | P160: 2.0 | Q160: 3.5 | R160: 120 | S160: 85% | T160: 72% | U160: 194 | V160: 48% | W160: 6% | X160: 15 | Y160: 178 | Z160: 950-1220 | AA160: SAT | AB160: 950 | AC160: 1220 | AD160: =+('First tier 2018'!$AB160+'First tier 2018'!$AC160)/2 -> 1085 | AE160: 30% | AF160: 65% | AG160: 190 | AH160: $43,500 | AI160: 162 | AJ160: 7%
A161: 160 | B161: 159 | C161: Illinois State University | D161: IL | E161: Midwest | F161: Urban | G161: 18643 | H161: Selective | I161: 2 | J161: 44.6% | K161: 2% | L161: 25168 | M161: 14061 | N161: public | O161: 38 | P161: 2.5 | Q161: 3.3 | R161: 110 | S161: 82% | T161: 72% | U161: 248 | V161: 32% | W161: 10% | X161: 18 | Y161: 172 | Z161: 21-26 | AA161: ACT | AB161: 21 | AC161: 26 | AD161: =+('First tier 2018'!$AB161+'First tier 2018'!$AC161)/2 -> 23.5 | AE161: N/A | AF161: 89% | AG161: 217 | AH161: $45,900 | AI161: 162 | AJ161: 7%
A162: 161 | B162: 159 | C162: University of Alabama--Birmingham | D162: AL | E162: South | F162: Urban | G162: 12369 | H162: More selective | I162: 3 | J162: 40.7% | K162: 11% | L162: 23790 | M162: 10410 | N162: public | O162: 38 | P162: 2.8 | Q162: 3.4 | R162: 192 | S162: 81% | T162: 53% | U162: 194 | V162: 37% | W162: 18% | X162: 16 | Y162: 136 | Z162: 21-28 | AA162: ACT | AB162: 21 | AC162: 28 | AD162: =+('First tier 2018'!$AB162+'First tier 2018'!$AC162)/2 -> 24.5 | AE162: 28% | AF162: 89% | AG162: 32 | AH162: $44,800 | AI162: 127 | AJ162: 9%
A163: 162 | B163: 159 | C163: University of Hawaii--Manoa | D163: HI | E163: West | F163: Urban | G163: 13132 | H163: Selective | I163: 2 | J163: 44.8% | K163: 26% | L163: 33764 | M163: 11732 | N163: public | O163: 38 | P163: 2.7 | Q163: 3.3 | R163: 186 | S163: 78% | T163: 58% | U163: 128 | V163: 52% | W163: 12% | X163: 10 | Y163: 183 | Z163: 970-1190 | AA163: SAT | AB163: 970 | AC163: 1190 | AD163: =+('First tier 2018'!$AB163+'First tier 2018'!$AC163)/2 -> 1080 | AE163: 26% | AF163: 80% | AG163: 52 | AH163: $45,900 | AI163: 184 | AJ163: 6%
A164: 163 | B164: 159 | C164: University of La Verne | D164: CA | E164: West | F164: Suburban | G164: 2809 | H164: Selective | I164: 2 | J164: 42.0% | K164: 4% | L164: 41450 | N164: private | O164: 38 | P164: 2.0 | Q164: 3.2 | R164: 152 | S164: 87% | T164: 66% | U164: 106 | V164: 68% | W164: 0.40% | X164: 13 | Y164: 224 | Z164: 930-1130 | AA164: SAT | AB164: 930 | AC164: 1130 | AD164: =+('First tier 2018'!$AB164+'First tier 2018'!$AC164)/2 -> 1030 | AE164: 18% | AF164: 48% | AG164: 114 | AH164: $46,200 | AI164: 184 | AJ164: 6%
A165: 164 | B165: 159 | C165: Univ. of Maryland--Baltimore County | D165: MD | E165: South | F165: Suburban | G165: 11142 | H165: More selective | I165: 3 | J165: 55.4% | K165: 5% | L165: 25654 | M165: 11518 | N165: public | O165: 38 | P165: 2.8 | Q165: 3.4 | R165: 142 | S165: 87% | T165: 64% | U165: 229 | V165: 36% | W165: 14% | X165: 19 | Y165: 110 | Z165: 1120-1320 | AA165: SAT | AB165: 1120 | AC165: 1320 | AD165: =+('First tier 2018'!$AB165+'First tier 2018'!$AC165)/2 -> 1220 | AE165: 24% | AF165: 57% | AG165: 179 | AH165: $53,600 | AI165: 227 | AJ165: 4%
A166: 165 | B166: 165 | C166: Immaculata University | D166: PA | E166: East | F166: Suburban | G166: 1555 | H166: Selective | I166: 2 | J166: 25.9% | K166: 28% | L166: 27350 | N166: private | O166: 37 | P166: 2.0 | Q166: 3.2 | R166: 164 | S166: 81% | T166: 68% | U166: 138 | V166: 86% | W166: 0% | X166: 8 | Y166: 277 | Z166: 860-1080 | AA166: SAT | AB166: 860 | AC166: 1080 | AD166: =+('First tier 2018'!$AB166+'First tier 2018'!$AC166)/2 -> 970 | AE166: 15% | AF166: 82% | AG166: 174 | AH166: $45,500 | AI166: 140 | AJ166: 8%
A167: 166 | B167: 165 | C167: Maryville Univ. of St. Louis | D167: MO | E167: Midwest | F167: Suburban | G167: 2967 | H167: Selective | I167: 2 | J167: 32.7% | K167: 24% | L167: 28470 | N167: private | O167: 37 | P167: 1.9 | Q167: 3.4 | R167: 110 | S167: 87% | T167: 75% | U167: 150 | V167: 69% | W167: 0.40% | X167: 13 | Y167: 158 | Z167: 22-27 | AA167: ACT | AB167: 22 | AC167: 27 | AD167: =+('First tier 2018'!$AB167+'First tier 2018'!$AC167)/2 -> 24.5 | AE167: 28% | AF167: 93% | AG167: 250 | AH167: $45,000 | AI167: 122 | AJ167: 9%
A168: 167 | B168: 165 | C168: Missouri Univ. of Science & Tech. | D168: MO | E168: Midwest | F168: Rural | G168: 6909 | H168: More selective | I168: 3 | J168: 76.7% | K168: 17% | L168: 27701 | M168: 9628 | N168: public | O168: 37 | P168: 2.7 | Q168: 3.5 | R168: 152 | S168: 84% | T168: 64% | U168: 262 | V168: 25% | W168: 27% | X168: 19 | Y168: 92 | Z168: 25-31 | AA168: ACT | AB168: 25 | AC168: 31 | AD168: =+('First tier 2018'!$AB168+'First tier 2018'!$AC168)/2 -> 28 | AE168: 33% | AF168: 79% | AG168: 197 | AH168: $64,900 | AI168: 63 | AJ168: 14%
A169: 168 | B169: 165 | C169: St. John's University | D169: NY | E169: East | F169: Urban | G169: 16440 | H169: Selective | I169: 2 | J169: 43.9% | K169: 27% | L169: 40790 | N169: private | O169: 37 | P169: 2.8 | Q169: 3.6 | R169: 180 | S169: 81% | T169: 58% | U169: 138 | V169: 32% | W169: 5% | X169: 17 | Y169: 199 | Z169: 970-1180 | AA169: SAT | AB169: 970 | AC169: 1180 | AD169: =+('First tier 2018'!$AB169+'First tier 2018'!$AC169)/2 -> 1075 | AE169: 18% | AF169: 63% | AG169: 197 | AH169: $50,300 | AI169: 214 | AJ169: 5%
A170: 169 | B170: 165 | C170: University of California--Merced | D170: CA | E170: West | F170: Rural | G170: 6815 | H170: Less selective | I170: 1 | J170: 48.8% | L170: 41612 | M170: 13598 | N170: public | O170: 37 | P170: 2.7 | Q170: 3.6 | R170: 146 | S170: 85% | T170: 66% | U170: 262 | V170: 26% | W170: 29% | X170: 20 | Y170: 289 | Z170: 860-1070 | AA170: SAT | AB170: 860 | AC170: 1070 | AD170: =+('First tier 2018'!$AB170+'First tier 2018'!$AC170)/2 -> 965 | AE170: N/A | AF170: 74% | AG170: 81 | AI170: 122 | AJ170: 10%
A171: 170 | B171: 165 | C171: University of Louisville | D171: KY | E171: South | F171: Urban | G171: 15827 | H171: Selective | I171: 2 | J171: 49.6% | K171: 18% | L171: 26286 | M171: 11264 | N171: public | O171: 37 | P171: 2.8 | Q171: 3.5 | R171: 204 | S171: 80% | T171: 53% | U171: 159 | V171: 36% | W171: 8% | X171: 15 | Y171: 160 | Z171: 22-29 | AA171: ACT | AB171: 22 | AC171: 29 | AD171: =+('First tier 2018'!$AB171+'First tier 2018'!$AC171)/2 -> 25.5 | AE171: 29% | AF171: 73% | AG171: 69 | AH171: $45,100 | AI171: 67 | AJ171: 13%
A172: 171 | B172: 171 | C172: Mississippi State University | D172: MS | E172: South | F172: Rural | G172: 18090 | H172: More selective | I172: 3 | J172: 50.0% | K172: 30% | L172: 22358 | M172: 8138 | N172: public | O172: 36 | P172: 2.6 | Q172: 3.3 | R172: 174 | S172: 80% | T172: 60% | U172: 239 | V172: 35% | W172: 15% | X172: 20 | Y172: 148 | Z172: 21-28 | AA172: ACT | AB172: 21 | AC172: 28 | AD172: =+('First tier 2018'!$AB172+'First tier 2018'!$AC172)/2 -> 24.5 | AE172: 28% | AF172: 71% | AG172: 158 | AH172: $47,500 | AI172: 54 | AJ172: 16%
A173: 172 | B173: 171 | C173: Rowan University | D173: NJ | E173: East | F173: Suburban | G173: 14344 | H173: Selective | I173: 2 | J173: 45.6% | K173: 3% | L173: 21378 | M173: 13108 | N173: public | O173: 36 | P173: 2.3 | Q173: N/A | R173: 120 | S173: 87% | T173: 71% | U173: 166 | V173: 38% | W173: 1% | X173: 17 | Y173: 241 | Z173: 990-1210 | AA173: SAT | AB173: 990 | AC173: 1210 | AD173: =+('First tier 2018'!$AB173+'First tier 2018'!$AC173)/2 -> 1100 | AE173: N/A | AF173: 58% | AG173: 158 | AI173: 242 | AJ173: 3%
A174: 173 | B174: 171 | C174: University of Central Florida | D174: FL | E174: South | F174: Suburban | G174: 55776 | H174: More selective | I174: 3 | J174: 45.4% | K174: 6% | L174: 22467 | M174: 6368 | N174: public | O174: 36 | P174: 2.7 | Q174: 3.2 | R174: 110 | S174: 88% | T174: 69% | U174: 274 | V174: 27% | W174: 24% | X174: 30 | Y174: 110 | Z174: 1080-1270 | AA174: SAT | AB174: 1080 | AC174: 1270 | AD174: =+('First tier 2018'!$AB174+'First tier 2018'!$AC174)/2 -> 1175 | AE174: 33% | AF174: 50% | AG174: 280 | AH174: $45,200 | AI174: 152 | AJ174: 8%
A175: 174 | B175: 171 | C175: University of Idaho | D175: ID | E175: West | F175: Rural | G175: 9586 | H175: Selective | I175: 2 | J175: 53.7% | K175: 22% | L175: 23812 | M175: 7488 | N175: public | O175: 36 | P175: 2.7 | Q175: 3.3 | R175: 186 | S175: 78% | T175: 56% | U175: 124 | V175: 53% | W175: 9% | X175: 16 | Y175: 217 | Z175: 930-1170 | AA175: SAT | AB175: 930 | AC175: 1170 | AD175: =+('First tier 2018'!$AB175+'First tier 2018'!$AC175)/2 -> 1050 | AE175: 19% | AF175: 76% | AG175: 129 | AH175: $48,700 | AI175: 110 | AJ175: 10%
A176: 175 | B176: 171 | C176: Virginia Commonwealth University | D176: VA | E176: South | F176: Urban | G176: 24212 | H176: Selective | I176: 2 | J176: 41.1% | K176: 7% | L176: 32942 | M176: 13570 | N176: public | O176: 36 | P176: 2.8 | Q176: 3.5 | R176: 157 | S176: 87% | T176: 62% | U176: 262 | V176: 31% | W176: 18% | X176: 18 | Y176: 204 | Z176: 980-1200 | AA176: SAT | AB176: 980 | AC176: 1200 | AD176: =+('First tier 2018'!$AB176+'First tier 2018'!$AC176)/2 -> 1090 | AE176: 19% | AF176: 75% | AG176: 147 | AH176: $45,300 | AI176: 198 | AJ176: 5%
A177: 176 | B177: 176 | C177: Kent State University | D177: OH | E177: Midwest | F177: Suburban | G177: 23684 | H177: Selective | I177: 2 | J177: 39.1% | K177: 14% | L177: 18376 | M177: 10012 | N177: public | O177: 35 | P177: 2.6 | Q177: 3.3 | R177: 192 | S177: 81% | T177: 54% | U177: 178 | V177: 52% | W177: 8% | X177: 21 | Y177: 210 | Z177: 21-25 | AA177: ACT | AB177: 21 | AC177: 25 | AD177: =+('First tier 2018'!$AB177+'First tier 2018'!$AC177)/2 -> 23 | AE177: 15% | AF177: 85% | AG177: 264 | AH177: $41,700 | AI177: 227 | AJ177: 4%
A178: 177 | B178: 176 | C178: Robert Morris University | D178: PA | E178: East | F178: Suburban | G178: 4384 | H178: Selective | I178: 2 | J178: 57.6% | K178: 14% | L178: 29420 | N178: private | O178: 35 | P178: 2.2 | Q178: 2.9 | R178: 174 | S178: 82% | T178: 61% | U178: 74 | V178: 55% | W178: 4% | X178: 15 | Y178: 246 | Z178: 940-1140 | AA178: SAT | AB178: 940 | AC178: 1140 | AD178: =+('First tier 2018'!$AB178+'First tier 2018'!$AC178)/2 -> 1040 | AE178: 14% | AF178: 80% | AG178: 211 | AH178: $45,700 | AI178: 173 | AJ178: 6%
A179: 178 | B179: 176 | C179: Texas Tech University | D179: TX | E179: South | F179: City | G179: 29963 | H179: More selective | I179: 3 | J179: 54.9% | K179: 6% | L179: 23011 | M179: 10771 | N179: public | O179: 35 | P179: 2.8 | Q179: 3.5 | R179: 170 | S179: 83% | T179: 60% | U179: 251 | V179: 28% | W179: 21% | X179: 21 | Y179: 158 | Z179: 1020-1200 | AA179: SAT | AB179: 1020 | AC179: 1200 | AD179: =+('First tier 2018'!$AB179+'First tier 2018'!$AC179)/2 -> 1110 | AE179: 21% | AF179: 63% | AG179: 246 | AH179: $51,500 | AI179: 92 | AJ179: 11%
A180: 179 | B180: 176 | C180: Union University | D180: TN | E180: South | F180: City | G180: 2214 | H180: More selective | I180: 3 | J180: 34.9% | K180: 42% | L180: 31580 | N180: private | O180: 35 | P180: 1.9 | Q180: N/A | R180: 133 | S180: 89% | T180: 68% | U180: 50 | V180: 74% | W180: 0% | X180: 11 | Y180: 110 | Z180: 23-30 | AA180: ACT | AB180: 23 | AC180: 30 | AD180: =+('First tier 2018'!$AB180+'First tier 2018'!$AC180)/2 -> 26.5 | AE180: 32% | AF180: 63% | AG180: 238 | AH180: $42,900 | AI180: 214 | AJ180: 5%
A181: 180 | B181: 176 | C181: University of Hartford | D181: CT | E181: East | F181: Suburban | G181: 5150 | H181: Selective | I181: 2 | J181: 48.8% | K181: 51% | L181: 38910 | N181: private | O181: 35 | P181: 2.4 | Q181: 3.3 | R181: 182 | S181: 75% | T181: 60% | U181: 106 | V181: 72% | W181: 1% | X181: 9 | Y181: 250 | Z181: 920-1160 | AA181: SAT | AB181: 920 | AC181: 1160 | AD181: =+('First tier 2018'!$AB181+'First tier 2018'!$AC181)/2 -> 1040 | AE181: N/A | AF181: 72% | AG181: 179 | AH181: $49,600 | AI181: 227 | AJ181: 4%
A182: 181 | B182: 181 | C182: Edgewood College | D182: WI | E182: Midwest | F182: City | G182: 1661 | H182: Selective | I182: 2 | J182: 27.7% | K182: 8% | L182: 28500 | N182: private | O182: 34 | P182: 1.8 | Q182: N/A | R182: 170 | S182: 81% | T182: 63% | U182: 62 | V182: 83% | W182: 0% | X182: 10 | Y182: 189 | Z182: 21-25 | AA182: ACT | AB182: 21 | AC182: 25 | AD182: =+('First tier 2018'!$AB182+'First tier 2018'!$AC182)/2 -> 23 | AE182: 15% | AF182: 78% | AG182: 202 | AI182: 152 | AJ182: 8%
A183: 182 | B183: 181 | C183: Lesley University | D183: MA | E183: East | F183: N/A | G183: 1929 | H183: Selective | I183: 2 | J183: 22.6% | K183: 35% | L183: 26550 | N183: private | O183: 34 | P183: 2.1 | Q183: 3.3 | R183: 204 | S183: 78% | T183: 55% | U183: 59 | V183: 69% | W183: 0% | X183: 12 | Y183: 230 | Z183: 960-1170 | AA183: SAT | AB183: 960 | AC183: 1170 | AD183: =+('First tier 2018'!$AB183+'First tier 2018'!$AC183)/2 -> 1065 | AE183: 15% | AF183: 64% | AG183: 147 | AH183: $43,200 | AI183: 227 | AJ183: 4%
A184: 183 | B184: 181 | C184: Lipscomb University | D184: TN | E184: South | F184: Suburban | G184: 2986 | H184: More selective | I184: 3 | J184: 38.2% | K184: 35% | L184: 30932 | N184: private | O184: 34 | P184: 2.0 | Q184: 3.3 | R184: 174 | S184: 81% | T184: 58% | U184: 138 | V184: 59% | W184: 5% | X184: 12 | Y184: 129 | Z184: 22-28 | AA184: ACT | AB184: 22 | AC184: 28 | AD184: =+('First tier 2018'!$AB184+'First tier 2018'!$AC184)/2 -> 25 | AE184: 30% | AF184: 61% | AG184: 147 | AH184: $43,900 | AI184: 76 | AJ184: 13%
A185: 184 | B185: 181 | C185: Suffolk University | D185: MA | E185: East | F185: Urban | G185: 5290 | H185: Selective | I185: 2 | J185: 45.2% | K185: 32% | L185: 37270 | N185: private | O185: 34 | P185: 2.3 | Q185: 3.2 | R185: 199 | S185: 75% | T185: 59% | U185: 83 | V185: 48% | W185: 0.20% | X185: 13 | Y185: 259 | Z185: 910-1120 | AA185: SAT | AB185: 910 | AC185: 1120 | AD185: =+('First tier 2018'!$AB185+'First tier 2018'!$AC185)/2 -> 1015 | AE185: 19% | AF185: 84% | AG185: 129 | AH185: $46,400 | AI185: 198 | AJ185: 5%
A186: 185 | B186: 181 | C186: University of Maine | D186: ME | E186: East | F186: Rural | G186: 9323 | H186: Selective | I186: 2 | J186: 53.1% | K186: 30% | L186: 30282 | M186: 10902 | N186: public | O186: 34 | P186: 2.7 | Q186: 3.3 | R186: 182 | S186: 78% | T186: 59% | U186: 210 | V186: 39% | W186: 16% | X186: 16 | Y186: 236 | Z186: 950-1190 | AA186: SAT | AB186: 950 | AC186: 1190 | AD186: =+('First tier 2018'!$AB186+'First tier 2018'!$AC186)/2 -> 1070 | AE186: 18% | AF186: 90% | AG186: 136 | AH186: $47,300 | AI186: 152 | AJ186: 7%
A187: 186 | B187: 181 | C187: University of Wyoming | D187: WY | E187: West | F187: Suburban | G187: 9788 | H187: Selective | I187: 2 | J187: 49.3% | K187: 38% | L187: 16827 | M187: 5217 | N187: public | O187: 34 | P187: 2.7 | Q187: 3.3 | R187: 204 | S187: 75% | T187: 55% | U187: 150 | V187: 39% | W187: 11% | X187: 14 | Y187: 172 | Z187: 21-27 | AA187: ACT | AB187: 21 | AC187: 27 | AD187: =+('First tier 2018'!$AB187+'First tier 2018'!$AC187)/2 -> 24 | AE187: 22% | AF187: 95% | AG187: 97 | AH187: $49,100 | AI187: 127 | AJ187: 9%
A188: 187 | B188: 187 | C188: Azusa Pacific University | D188: CA | E188: West | F188: Suburban | G188: 5770 | H188: Selective | I188: 2 | J188: 33.8% | K188: 19% | L188: 36120 | N188: private | O188: 33 | P188: 2.1 | Q188: 3.3 | R188: 127 | S188: 85% | T188: 70% | U188: 258 | V188: 58% | W188: 2% | X188: 12 | Y188: 230 | Z188: 930-1160 | AA188: SAT | AB188: 930 | AC188: 1160 | AD188: =+('First tier 2018'!$AB188+'First tier 2018'!$AC188)/2 -> 1045 | AE188: N/A | AF188: 84% | AG188: 174 | AH188: $44,200 | AI188: 275 | AJ188: N/A
A189: 188 | B189: 187 | C189: Ball State University | D189: IN | E189: Midwest | F189: Suburban | G189: 17011 | H189: Selective | I189: 2 | J189: 40.8% | K189: 14% | L189: 25938 | M189: 9848 | N189: public | O189: 33 | P189: 2.6 | Q189: 3.2 | R189: 170 | S189: 81% | T189: 62% | U189: 219 | V189: 42% | W189: 6% | X189: 14 | Y189: 259 | Z189: 990-1170 | AA189: SAT | AB189: 990 | AC189: 1170 | AD189: =+('First tier 2018'!$AB189+'First tier 2018'!$AC189)/2 -> 1080 | AE189: 17% | AF189: 62% | AG189: 217 | AH189: $41,200 | AI189: 122 | AJ189: 9%
A190: 189 | B190: 187 | C190: Montclair State University | D190: NJ | E190: East | F190: Suburban | G190: 16810 | H190: Less selective | I190: 1 | J190: 38.6% | K190: 3% | L190: 20566 | M190: 12454 | N190: public | O190: 33 | P190: 2.2 | Q190: 2.8 | R190: 146 | S190: 83% | T190: 65% | U190: 94 | V190: 39% | W190: 2% | X190: 17 | Y190: 293 | Z190: 870-1070 | AA190: SAT | AB190: 870 | AC190: 1070 | AD190: =+('First tier 2018'!$AB190+'First tier 2018'!$AC190)/2 -> 970 | AE190: 11% | AF190: 66% | AG190: 250 | AH190: $46,400 | AI190: 227 | AJ190: 4%
A191: 190 | B191: 187 | C191: Pace University | D191: NY | E191: East | F191: Urban | G191: 8914 | H191: Selective | I191: 2 | J191: 39.5% | K191: 41% | L191: 44036 | N191: private | O191: 33 | P191: 2.5 | Q191: 3.2 | R191: 204 | S191: 77% | T191: 58% | U191: 120 | V191: 49% | W191: 2% | X191: 14 | Y191: 230 | Z191: 940-1160 | AA191: SAT | AB191: 940 | AC191: 1160 | AD191: =+('First tier 2018'!$AB191+'First tier 2018'!$AC191)/2 -> 1050 | AE191: 15% | AF191: 84% | AG191: 163 | AH191: $53,900 | AI191: 214 | AJ191: 4%
A192: 191 | B192: 187 | C192: West Virginia University | D192: WV | E192: South | F192: Suburban | G192: 22350 | H192: Selective | I192: 2 | J192: 54.1% | K192: 48% | L192: 23616 | M192: 8376 | N192: public | O192: 33 | P192: 2.8 | Q192: 3.2 | R192: 186 | S192: 78% | T192: 57% | U192: 251 | V192: 38% | W192: 18% | X192: 19 | Y192: 189 | Z192: 21-26 | AA192: ACT | AB192: 21 | AC192: 26 | AD192: =+('First tier 2018'!$AB192+'First tier 2018'!$AC192)/2 -> 23.5 | AE192: 20% | AF192: 76% | AG192: 147 | AH192: $49,200 | AI192: 110 | AJ192: 10%
A193: 192 | B193: 192 | C193: Andrews University | D193: MI | E193: Midwest | F193: Rural | G193: 1688 | H193: More selective | I193: 3 | J193: 45.4% | K193: 64% | L193: 28436 | N193: private | O193: 32 | P193: 1.8 | Q193: N/A | R193: 174 | S193: 81% | T193: 63% | U193: 101 | V193: 70% | W193: 4% | X193: 9 | Y193: 140 | Z193: 21-29 | AA193: ACT | AB193: 21 | AC193: 29 | AD193: =+('First tier 2018'!$AB193+'First tier 2018'!$AC193)/2 -> 25 | AE193: 20% | AF193: 40% | AG193: 147 | AH193: $44,800 | AI193: 198 | AJ193: 5%
A194: 193 | B194: 192 | C194: Indiana U.-Purdue U.--Indianapolis | D194: IN | E194: Midwest | F194: Urban | G194: 21748 | H194: Selective | I194: 2 | J194: 43.8% | K194: 3% | L194: 29806 | M194: 9334 | N194: public | O194: 32 | P194: 2.9 | Q194: 3.7 | R194: 248 | S194: 73% | T194: 47% | U194: 210 | V194: 34% | W194: 11% | X194: 17 | Y194: 250 | Z194: 890-1130 | AA194: SAT | AB194: 890 | AC194: 1130 | AD194: =+('First tier 2018'!$AB194+'First tier 2018'!$AC194)/2 -> 1010 | AE194: 16% | AF194: 74% | AG194: 76 | AH194: $46,200 | AI194: 162 | AJ194: 7%
A195: 194 | B195: 192 | C195: University of Houston | D195: TX | E195: South | F195: Urban | G195: 35871 | H195: More selective | I195: 3 | J195: 51.2% | K195: 2% | L195: 27337 | M195: 11887 | N195: public | O195: 32 | P195: 2.7 | Q195: 3.4 | R195: 212 | S195: 86% | T195: 51% | U195: 229 | V195: 27% | W195: 24% | X195: 21 | Y195: 136 | Z195: 1040-1250 | AA195: SAT | AB195: 1040 | AC195: 1250 | AD195: =+('First tier 2018'!$AB195+'First tier 2018'!$AC195)/2 -> 1145 | AE195: 32% | AF195: 59% | AG195: 202 | AH195: $51,400 | AI195: 76 | AJ195: 13%
A196: 195 | B196: 192 | C196: University of New Mexico | D196: NM | E196: West | F196: Urban | G196: 20215 | H196: Selective | I196: 2 | J196: 44.6% | K196: 7% | L196: 22412 | M196: 7150 | N196: public | O196: 32 | P196: 2.8 | Q196: 3.3 | R196: 230 | S196: 79% | T196: 44% | U196: 138 | V196: 55% | W196: 11% | X196: 20 | Y196: 210 | Z196: 19-25 | AA196: ACT | AB196: 19 | AC196: 25 | AD196: =+('First tier 2018'!$AB196+'First tier 2018'!$AC196)/2 -> 22 | AE196: N/A | AF196: 47% | AG196: 72 | AH196: $44,600 | AI196: 242 | AJ196: 4%
A197: 196 | B197: 192 | C197: University of North Dakota | D197: ND | E197: Midwest | F197: City | G197: 11255 | H197: Selective | I197: 2 | J197: 56.5% | K197: 60% | L197: 21462 | M197: 9862 | N197: public | O197: 32 | P197: 2.6 | Q197: 3.4 | R197: 199 | S197: 79% | T197: 55% | U197: 219 | V197: 38% | W197: 9% | X197: 21 | Y197: 224 | Z197: 21-26 | AA197: ACT | AB197: 21 | AC197: 26 | AD197: =+('First tier 2018'!$AB197+'First tier 2018'!$AC197)/2 -> 23.5 | AE197: 18% | AF197: 84% | AG197: 111 | AH197: $48,900 | AI197: 173 | AJ197: 7%
A198: 197 | B198: 192 | C198: Widener University | D198: PA | E198: East | F198: Suburban | G198: 3591 | H198: Selective | I198: 2 | J198: 44.6% | K198: 43% | L198: 44166 | N198: private | O198: 32 | P198: 2.2 | Q198: 3.0 | R198: 192 | S198: 78% | T198: 57% | U198: 101 | V198: 54% | W198: 2% | X198: 13 | Y198: 259 | Z198: 930-1130 | AA198: SAT | AB198: 930 | AC198: 1130 | AD198: =+('First tier 2018'!$AB198+'First tier 2018'!$AC198)/2 -> 1030 | AE198: 9% | AF198: 70% | AG198: 163 | AI198: 242 | AJ198: 3%
A199: 198 | B199: 198 | C199: New Mexico State University | D199: NM | E199: West | F199: City | G199: 12027 | H199: Selective | I199: 2 | J199: 46.6% | K199: 25% | L199: 22701 | M199: 7122 | N199: public | O199: 31 | P199: 2.5 | Q199: 3.2 | R199: 248 | S199: 74% | T199: 45% | U199: 166 | V199: 47% | W199: 10% | X199: 16 | Y199: 250 | Z199: 18-24 | AA199: ACT | AB199: 18 | AC199: 24 | AD199: =+('First tier 2018'!$AB199+'First tier 2018'!$AC199)/2 -> 21 | AE199: 22% | AF199: 60% | AG199: 129 | AH199: $48,100 | AI199: 184 | AJ199: 6%
A200: 199 | B200: 198 | C200: North Dakota State University | D200: ND | E200: Midwest | F200: City | G200: 12010 | H200: Selective | I200: 2 | J200: 54.6% | K200: 57% | L200: 20571 | M200: 9409 | N200: public | O200: 31 | P200: 2.5 | Q200: 3.3 | R200: 199 | S200: 79% | T200: 55% | U200: 239 | V200: 32% | W200: 22% | X200: 17 | Y200: 165 | Z200: 21-26 | AA200: ACT | AB200: 21 | AC200: 26 | AD200: =+('First tier 2018'!$AB200+'First tier 2018'!$AC200)/2 -> 23.5 | AE200: 16% | AF200: 93% | AG200: 147 | AH200: $51,200 | AI200: 152 | AJ200: 7%
... 31 more rows

Sheet VarDescriptions
A1: Variable | B1: Label
A2: Order | B2: Order
A3: Rank | B3: Rank
A4: School | B4: School name
A5: State | B5: State
A6: Region | B6: Region
A7: Setting | B7: Type of Setting
A8: UGEnroll | B8: UG Enrollment
A9: Selectivity | B9: Selectivity Level
A10: Selective | B10: Selectivity Level
A11: PctMale | B11: Percent Male (UG)
A12: PctOS | B12: Percent Out-of-State Students (UG)
A13: Tuition | B13: Tuition and Fees
A14: ISTuition | B14: Instate tuition and Fees
A15: Type | B15: Type of School (Private/Public)
A16: CompScore | B16: Composite score 2017
A17: PeerRating | B17: Peer Assessment Rating
A18: HSGCRating | B18: HS Guidance Counselor Rating
A19: GradRetentRank | B19: Graduation/Rention Rank
A20: RetentRate | B20: Freshman retension rate
A21: GradRate | B21: Graduation rate
A22: FacResourcesRank | B22: Faculty resource rank
A23: PctCLU20 | B23: Pct classes LT 20 students
A24: PCTCLO50 | B24: Pct classes GT 50 students
A25: SFRatio | B25: Students per faculty
A26: SelectRank | B26: Admissions selectivity rank
A27: TestMidRange | B27: 25%-75% test range (SAT or ACT)
A28: Test | B28: Test type: SAT or ACT
A29: Test25 | B29: SAT 25%-tile
A30: Test75 | B30: SAT 75%-tile
A31: TestMid | B31: SAT midpoint of 25%-75%
A32: TopFresh | B32: Pct freshmen in top 10% of HS
A33: Accept | B33: Acceptance rate
A34: FinResRank | B34: Faculty resources rank
A35: AlumSalary | B35: Average Alum Starting Salary
A36: AlumGiveRnank | B36: Alumni giving rank
A37: PctAlumGive | B37: Pct alumni giving
